Workbook

Sheet TOC
A1: see note on navigation: | B1: (cntrl-shift-o) | Y1: =SUM(Y3:Y30) -> 0
B2: # | C2: ="total pts: " & SUM(C3:C64) -> total pts: 70 | D2: a | E2: b | F2: c | G2: d | H2: e | J2: NOTES | Y2: check | AA2: 2018.Fall
A3: McD.Intro | B3: 1 | C3: 2.5 | D3: 1 | E3: 0.5 | F3: 0.5 | G3: 0.5 | I3: | | J3: Note on navigation: | X3: | | Y3: =SUM(D3:H3)-C3 -> 0 | Z3: 1 | AA3: Baer.Intro
A4: FSCO.PPA, FSCO.UBI | B4: 2 | C4: 1 | D4: 0.25 | E4: 0.25 | F4: 0.25 | G4: 0.25 | I4: | | J4: Put the cursor over the question number you want to navigate to then use cntr-shift-o. | X4: | | Y4: =SUM(D4:H4)-C4 -> 0 | Z4: =Z3+1 -> 2 | AA4: KPMG.RegOv
A5: AB.TNC, FSCO.UBI | B5: 3 | C5: 1.75 | D5: 0.75 | E5: 0.5 | F5: 0.5 | I5: | | J5: You can get back to this TOC sheet using cntrl-shift-o from anywhere in this file. | X5: | | Y5: 0 | Z5: =Z4+1 -> 3 | AA5: AAA.CrdSc
A6: IFRS 17 | B6: 4 | C6: 3 | D6: 0.5 | E6: 1.5 | F6: 1 | I6: | | X6: | | Y6: 0 | Z6: 4 | AA6: Marshall.Benefits
A7: Land.Cases | B7: 5 | C7: 1.5 | D7: 0.75 | E7: 0.75 | I7: | | X7: | | Y7: 0 | Z7: 5 | AA7: Land.Cases
A8: Dav.NonPec | B8: 6 | C8: 2.5 | D8: 0.5 | E8: 0.5 | F8: 1 | G8: 0.5 | I8: | | X8: | | Y8: 0 | Z8: 6 | AA8: Harris.Tort
A9: Chev.Agric | B9: 7 | C9: 2.5 | D9: 0.75 | E9: 0.5 | F9: 0.5 | G9: 0.75 | I9: | | X9: | | Y9: 0 | Z9: 7 | AA9: Chev.Agric
A10: FA.Dutil | B10: 8 | C10: 3.5 | D10: 1.25 | E10: 0.25 | F10: 1 | G10: 1 | I10: | | X10: | | Y10: 0 | Z10: 8 | AA10: FA.Dutil
A11: IIC.Terrorism | B11: 9 | C11: 2 | D11: 0.5 | E11: 0.75 | F11: 0.5 | G11: 0.25 | I11: | | X11: | | Y11: 0 | Z11: 9 | AA11: Morn.Pension
A12: ICBC.Affordable | B12: 10 | C12: 1 | D12: 1 | I12: | | X12: | | Y12: 0 | Z12: 10 | AA12: ICBC.Affordable
A13: IBC.Flood | B13: 11 | C13: 2.75 | D13: 0.5 | E13: 0.75 | F13: 0.5 | G13: 1 | I13: | | X13: | | Y13: 0 | Z13: 11 | AA13: IBC.Flood
A14: BCAR.Cdn2018 | B14: 12 | C14: 4 | D14: 3 | E14: 1 | I14: | | X14: | | Y14: 0 | Z14: 12 | AA14: CIA.Accting
A15: OSFI.MCT | B15: 13 | C15: 7 | D15: 2 | E15: 4.5 | F15: 0.5 | I15: | | X15: | | Y15: 0 | Z15: 13 | AA15: OSFI.MCT
A16: CCIR.ARinstr | B16: 14 | C16: 2 | D16: 1.25 | E16: 0.75 | I16: | | X16: | | Y16: 0 | Z16: 14 | AA16: CCIR.ARinstr
A17: MSA Ratios | B17: 15 | C17: 3.25 | D17: 2.75 | E17: 0.5 | I17: | | X17: | | Y17: 0 | Z17: 15 | AA17: MSA.Ratios
A18: CCIR.ARinstr | B18: 16 | C18: 2.25 | D18: 2.25 | I18: | | X18: | | Y18: 0 | Z18: 16 | AA18: CCIR.ARinstr
A19: OSFI.Eqk | B19: 17 | C19: 2.5 | D19: 1.25 | E19: 0.75 | F19: 0.5 | I19: | | X19: | | Y19: 0 | Z19: 17 | AA19: OSFI.Eqk
A20: Reinsurance | B20: 18 | C20: 1.5 | D20: 0.75 | E20: 0.75 | I20: | | X20: | | Y20: 0 | Z20: 18 | AA20: Reinsurance
A21: CIA.DCAT | B21: 19 | C21: 3 | D21: 1 | E21: 1 | F21: 1 | I21: | | X21: | | Y21: 0 | Z21: 19 | AA21: CIA.DCAT
A22: CIA.PrLiabs | B22: 20 | C22: 1.25 | D22: 0.5 | E22: 0.5 | F22: 0.25 | I22: | | X22: | | Y22: 0 | Z22: 20 | AA22: CIA.MfAD
A23: BCAR.Cat | B23: 21 | C23: 2.5 | D23: 1 | E23: 1 | F23: 0.5 | I23: | | X23: | | Y23: 0 | Z23: 21 | AA23: BCAR.Cdn
A24: CIA.Disclosure, CIA.Runoff, CIA.Discnt | B24: 22 | C24: 2 | D24: 0.5 | E24: 0.5 | F24: 1 | I24: | | X24: | | Y24: 0 | Z24: 22 | AA24: CIA.Disclosure, CIA.Runoff, CIA.DIscnt
A25: Odo.FinReg, IFA.Solvency2 | B25: 23 | C25: 2.75 | D25: 1.5 | E25: 0.5 | F25: 0.75 | I25: | | X25: | | Y25: 0 | Z25: 23 | AA25: Feld.RtAgs
A26: OSFI.ORSA | B26: 24 | C26: 2 | D26: 1.5 | E26: 0.5 | I26: | | X26: | | Y26: 0 | Z26: 24 | AA26: OSFI.ORSA
A27: CIA.Models | B27: 25 | C27: 3.5 | D27: 1.5 | E27: 1 | F27: 1 | I27: | | X27: | | Y27: 0 | Z27: 25 | AA27: CIA.Models
A28: OSFI.CorpGov | B28: 26 | C28: 2 | D28: 1.5 | E28: 0.5 | I28: | | X28: | | Y28: 0 | Z28: 26 | AA28: CIA.Mat
A29: CIA.Subseq | B29: 27 | C29: 1.75 | D29: 0.25 | E29: 1.5 | I29: | | X29: | | Y29: 0 | Z29: 27 | AA29: CIA.Subseq
A30: OSFI.AA | B30: 28 | C30: 2.75 | D30: 1 | E30: 1 | F30: 0.75 | I30: | | X30: | | Y30: 0 | Z30: 28 | AA30: OSFI.AA
I31: | | X31: |
I32: | | X32: |
I33: | | X33: |
I34: | | X34: |
I35: | | X35: |
I36: | | X36: |
I37: | | X37: |
I38: | | X38: |
I39: | | X39: |
I40: | | X40: |
I41: | | X41: |
I42: | | X42: |
I43: | | X43: |
I44: | | X44: |
I45: | | X45: |
I46: | | X46: |
I47: | | X47: |
I48: | | X48: |
I49: | | X49: |
I50: | | X50: |
I51: | | X51: |
I52: | | X52: |
I53: | | X53: |
I54: | | X54: |
I55: | | X55: |
I56: | | X56: |
I57: | | X57: |
I58: | | X58: |
I59: | | X59: |
I60: | | X60: |
I61: | | X61: |
I62: | | X62: |
I63: | | X63: |
I64: | | X64: |

Sheet 1
A1: Exam: | B1: BattleActs 6C Practice Exam 2 (2019.Fall) | L1: | | M1: Exam: | N1: BattleActs 6C Practice Exam 2 (2019.Fall) - [ANSWER SHEET] | X1: |
A2: Question: | B2: 1 | L2: | | M2: Answer: | N2: =B2 -> 1 | X2: |
A3: Points: | B3: 2.5 | C3: points | L3: | | M3: Points: | N3: =B3 -> 2.5 | O3: points | X3: |
L4: | | X4: |
B5: a. | C5: (1 point) | L5: | | M5: Source: | N5: McD.Intro | X5: |
L6: | | X6: |
C7: Identify 4 areas where the federal government has exclusive authority. | L7: | | M7: (1 point) | N7: a. | O7: Any 4 of: (there may be others - I've only listed items from the wiki) | X7: |
L8: | | O8: - regulation of trade & commerce | X8: |
B9: b. | C9: (0.5 points) | L9: | | O9: - taxation | X9: |
L10: | | O10: - banking | X10: |
C11: Identify 2 areas where the provincial government has exclusive authority. | L11: | | O11: - bankruptcy & insolvency | X11: |
L12: | | O12: - aliens & naturalization | X12: |
B13: c. | C13: (0.5 points) | L13: | | O13: - criminal law | X13: |
L14: | | X14: |
C15: Identify 2 matters under provincial insurance regulation. | L15: | | X15: |
L16: | | M16: (0.5 points) | N16: b. | O16: Any 2 of: (there may be others - I've only listed items from the wiki) | X16: |
B17: d. | C17: (0.5 points) | L17: | | O17: - provincial taxes | X17: |
L18: | | O18: - civil property rights | X18: |
C19: Identify 1 item under each matter listed in part (c). | L19: | | O19: - hiring & supervising provincial employees | X19: |
L20: | | O20: - operating jails & hospitals | X20: |
L21: | | X21: |
L22: | | M22: (0.5 points) | N22: c. | O22: - contract matters | X22: |
L23: | | O23: - transaction matters | X23: |
L24: | | X24: |
L25: | | M25: (0.5 points) | N25: d. | O25: For contract matters, any 1 of: (there may be others - I've only listed items from the wiki) | X25: |
L26: | | O26: - policy contents | X26: |
L27: | | O27: - policy terms (includes effective date) | X27: |
L28: | | O28: - premium payment | X28: |
L29: | | O29: - insurable interest | X29: |
L30: | | O30: - reinstatement | X30: |
L31: | | O31: - designation of beneficiaries | X31: |
L32: | | X32: |
L33: | | O33: For transaction matters, any 1 of: | X33: |
L34: | | O34: Agent licensing | X34: |
L35: | | O35: Unfair practices | X35: |
L36: | | O36: Claims handling | X36: |
L37: | | X37: |
L38: | | X38: |
L39: | | X39: |
L40: | | X40: |
L41: | | X41: |
L42: | | X42: |
L43: | | X43: |
L44: | | X44: |
L45: | | X45: |
L46: | | X46: |
L47: | | X47: |
A48: ---- | B48: ---- | C48: ---- | D48: ---- | E48: ---- | F48: ---- | G48: ---- | H48: ---- | I48: ---- | J48: ---- | K48: ---- | L48: | | M48: ---- | N48: ---- | O48: ---- | P48: ---- | Q48: ---- | R48: ---- | S48: ---- | T48: ---- | U48: ---- | V48: ---- | W48: ---- | X48: |
L49: | | X49: |
L50: | | X50: |
L51: | | X51: |
L52: | | X52: |
L53: | | X53: |
L54: | | X54: |
L55: | | X55: |
L56: | | X56: |
L57: | | X57: |
L58: | | X58: |
L59: | | X59: |
L60: | | X60: |
L61: | | X61: |
L62: | | X62: |
L63: | | X63: |
L64: | | X64: |
L65: | | X65: |
L66: | | X66: |
L67: | | X67: |
L68: | | X68: |
L69: | | X69: |
L70: | | X70: |
L71: | | X71: |
L72: | | X72: |
L73: | | X73: |
L74: | | X74: |
L75: | | X75: |
L76: | | X76: |
L77: | | X77: |
L78: | | X78: |
L79: | | X79: |
L80: | | X80: |
L81: | | X81: |
L82: | | X82: |
L83: | | X83: |
L84: | | X84: |
L85: | | X85: |
L86: | | X86: |
L87: | | X87: |
L88: | | X88: |
L89: | | X89: |
L90: | | X90: |
L91: | | X91: |
L92: | | X92: |
L93: | | X93: |
L94: | | X94: |
A95: ---- | B95: ---- | C95: ---- | D95: ---- | E95: ---- | F95: ---- | G95: ---- | H95: ---- | I95: ---- | J95: ---- | K95: ---- | L95: | | M95: ---- | N95: ---- | O95: ---- | P95: ---- | Q95: ---- | R95: ---- | S95: ---- | T95: ---- | U95: ---- | V95: ---- | W95: ---- | X95: |

Sheet 2
A1: Exam: | B1: BattleActs 6C Practice Exam 2 (2019.Fall) | L1: | | M1: Exam: | N1: BattleActs 6C Practice Exam 2 (2019.Fall) - [ANSWER SHEET] | X1: |
A2: Question: | B2: 2 | L2: | | M2: Answer: | N2: =B2 -> 2 | X2: |
A3: Points: | B3: 1 | C3: points | L3: | | M3: Points: | N3: =B3 -> 1 | O3: points | X3: |
L4: | | X4: |
B5: Explain whether the following situations are permitted according to Ontario regulations. | L5: | | M5: Source: | N5: FSCO.PPA, FSCO.UBI | X5: |
L6: | | X6: |
B7: a. | C7: (0.25 points) | L7: | | M7: (0.25 points) | N7: a. | O7: Permitted. | X7: |
L8: | | O8: - premium can be based on the value of a car | X8: |
C9: An insured purchased a new car. Their auto insurance premium increased. | L9: | | X9: |
L10: | | M10: (0.5 points) | N10: b. | O10: Permitted. | X10: |
B11: b. | C11: (0.25 points) | L11: | | O11: - the insurer cannot use employment status, but this situation could still be allowed if | X11: |
L12: | | O12: the premium adjustment (decrease) is based on the insured driving fewer miles by not | X12: |
C13: An insured was fired from their job. Their auto insurance decreased. | L13: | | O13: having to drive to work | X13: |
L14: | | X14: |
B15: c. | C15: (0.25 points) | L15: | | M15: (0.25 points) | N15: c. | O15: Permitted. (based on new version of syllabus reading) | X15: |
L16: | | O16: - the current version of the FSCO.UBI syllabus reading does permit investigation of claims | X16: |
C17: An insurer used data from a Usage-Based Insurance program to investigate a | L17: | | O17: based on UBI data (the previous version did not) | X17: |
C18: suspicious claim. | L18: | | X18: |
L19: | | M19: (0.25 points) | N19: d. | O19: Permitted. (based on new version of syllabus reading) | X19: |
B20: d. | C20: (0.25 points) | L20: | | O20: - fraud prevention is permitted so if the insurer used UBI to determine a claim is | X20: |
L21: | | O21: fraudulent, they should be permitted to deny the claim | X21: |
C22: An insurer used data from a Usage-Based Insurance program to deny a | L22: | | X22: |
C23: suspicious claim that appears very likely to be fraudulent. | L23: | | X23: |
L24: | | X24: |
L25: | | X25: |
L26: | | X26: |
L27: | | X27: |
L28: | | X28: |
L29: | | X29: |
L30: | | X30: |
L31: | | X31: |
L32: | | X32: |
L33: | | X33: |
L34: | | X34: |
L35: | | X35: |
L36: | | X36: |
L37: | | X37: |
L38: | | X38: |
L39: | | X39: |
L40: | | X40: |
L41: | | X41: |
L42: | | X42: |
L43: | | X43: |
L44: | | X44: |
L45: | | X45: |
L46: | | X46: |
L47: | | X47: |
A48: ---- | B48: ---- | C48: ---- | D48: ---- | E48: ---- | F48: ---- | G48: ---- | H48: ---- | I48: ---- | J48: ---- | K48: ---- | L48: | | M48: ---- | N48: ---- | O48: ---- | P48: ---- | Q48: ---- | R48: ---- | S48: ---- | T48: ---- | U48: ---- | V48: ---- | W48: ---- | X48: |
L49: | | X49: |
L50: | | X50: |
L51: | | X51: |
L52: | | X52: |
L53: | | X53: |
L54: | | X54: |
L55: | | X55: |
L56: | | X56: |
L57: | | X57: |
L58: | | X58: |
L59: | | X59: |
L60: | | X60: |
L61: | | X61: |
L62: | | X62: |
L63: | | X63: |
L64: | | X64: |
L65: | | X65: |
L66: | | X66: |
L67: | | X67: |
L68: | | X68: |
L69: | | X69: |
L70: | | X70: |
L71: | | X71: |
L72: | | X72: |
L73: | | X73: |
L74: | | X74: |
L75: | | X75: |
L76: | | X76: |
L77: | | X77: |
L78: | | X78: |
L79: | | X79: |
L80: | | X80: |
L81: | | X81: |
L82: | | X82: |
L83: | | X83: |
L84: | | X84: |
L85: | | X85: |
L86: | | X86: |
L87: | | X87: |
L88: | | X88: |
L89: | | X89: |
L90: | | X90: |
L91: | | X91: |
L92: | | X92: |
L93: | | X93: |
L94: | | X94: |
A95: ---- | B95: ---- | C95: ---- | D95: ---- | E95: ---- | F95: ---- | G95: ---- | H95: ---- | I95: ---- | J95: ---- | K95: ---- | L95: | | M95: ---- | N95: ---- | O95: ---- | P95: ---- | Q95: ---- | R95: ---- | S95: ---- | T95: ---- | U95: ---- | V95: ---- | W95: ---- | X95: |

Sheet 3
A1: Exam: | B1: BattleActs 6C Practice Exam 2 (2019.Fall) | L1: | | M1: Exam: | N1: BattleActs 6C Practice Exam 2 (2019.Fall) - [ANSWER SHEET] | X1: |
A2: Question: | B2: 3 | L2: | | M2: Answer: | N2: =B2 -> 3 | X2: |
A3: Points: | B3: 1.75 | C3: points | L3: | | M3: Points: | N3: =B3 -> 1.75 | O3: points | X3: |
L4: | | X4: |
B5: a. | C5: (0.75 points) | L5: | | M5: Source: | N5: AB.TNC, FSCO.UBI | X5: |
L6: | | X6: |
C7: Identify 3 pieces of information that must be made available to the TNC and | L7: | | M7: (0.75 points) | N7: a. | O7: accident information: | X7: |
C8: insurance providers after an accident where a a ride-sharing vehicle is involved. | L8: | | O8: - date/time of accident | X8: |
L9: | | O9: - circumstances of accident | X9: |
B10: b. | C10: (0.5 points) | L10: | | O10: electronic information: | X10: |
L11: | | O11: - times when driver was logged in/out to the TNC app | X11: |
C12: Describe a similarity between UBI and ride-sharing services. | L12: | | X12: |
L13: | | M13: (0.5 points) | N13: b. | O13: both require new technology | X13: |
B14: c. | C14: (0.5 points) | L14: | | O14: - UBI requires a device to be installed in your car | X14: |
L15: | | O15: - ride-sharing a smart-phone to connect drivers & customers | X15: |
C16: Describe a difference between UBI and ride-sharing services. | L16: | | O16: (there are probably also other valid answers) | X16: |
L17: | | X17: |
L18: | | M18: (0.5 points) | N18: c. | O18: - UBI affects a customer's premiums for traditional auto policies | X18: |
L19: | | O19: - ride-sharing is a new type of insurance policy to cover the use of personal vehicles to | X19: |
L20: | | O20: carry paying customers | X20: |
L21: | | X21: |
L22: | | X22: |
L23: | | X23: |
L24: | | X24: |
L25: | | X25: |
L26: | | X26: |
L27: | | X27: |
L28: | | X28: |
L29: | | X29: |
L30: | | X30: |
L31: | | X31: |
L32: | | X32: |
L33: | | X33: |
L34: | | X34: |
L35: | | X35: |
L36: | | X36: |
L37: | | X37: |
L38: | | X38: |
L39: | | X39: |
L40: | | X40: |
L41: | | X41: |
L42: | | X42: |
L43: | | X43: |
L44: | | X44: |
L45: | | X45: |
L46: | | X46: |
L47: | | X47: |
A48: ---- | B48: ---- | C48: ---- | D48: ---- | E48: ---- | F48: ---- | G48: ---- | H48: ---- | I48: ---- | J48: ---- | K48: ---- | L48: | | M48: ---- | N48: ---- | O48: ---- | P48: ---- | Q48: ---- | R48: ---- | S48: ---- | T48: ---- | U48: ---- | V48: ---- | W48: ---- | X48: |
L49: | | X49: |
L50: | | X50: |
L51: | | X51: |
L52: | | X52: |
L53: | | X53: |
L54: | | X54: |
L55: | | X55: |
L56: | | X56: |
L57: | | X57: |
L58: | | X58: |
L59: | | X59: |
L60: | | X60: |
L61: | | X61: |
L62: | | X62: |
L63: | | X63: |
L64: | | X64: |
L65: | | X65: |
L66: | | X66: |
L67: | | X67: |
L68: | | X68: |
L69: | | X69: |
L70: | | X70: |
L71: | | X71: |
L72: | | X72: |
L73: | | X73: |
L74: | | X74: |
L75: | | X75: |
L76: | | X76: |
L77: | | X77: |
L78: | | X78: |
L79: | | X79: |
L80: | | X80: |
L81: | | X81: |
L82: | | X82: |
L83: | | X83: |
L84: | | X84: |
L85: | | X85: |
L86: | | X86: |
L87: | | X87: |
L88: | | X88: |
L89: | | X89: |
L90: | | X90: |
L91: | | X91: |
L92: | | X92: |
L93: | | X93: |
L94: | | X94: |
A95: ---- | B95: ---- | C95: ---- | D95: ---- | E95: ---- | F95: ---- | G95: ---- | H95: ---- | I95: ---- | J95: ---- | K95: ---- | L95: | | M95: ---- | N95: ---- | O95: ---- | P95: ---- | Q95: ---- | R95: ---- | S95: ---- | T95: ---- | U95: ---- | V95: ---- | W95: ---- | X95: |

Sheet 4
A1: Exam: | B1: BattleActs 6C Practice Exam 2 (2019.Fall) | L1: | | M1: Exam: | N1: BattleActs 6C Practice Exam 2 (2019.Fall) - [ANSWER SHEET] | X1: |
A2: Question: | B2: 4 | L2: | | M2: Answer: | N2: =B2 -> 4 | X2: |
A3: Points: | B3: 3 | C3: points | L3: | | M3: Points: | N3: =B3 -> 3 | O3: points | X3: |
L4: | | X4: |
B5: a. | C5: (0.5 points) | L5: | | M5: Source: | N5: IFRS 17 | X5: |
L6: | | X6: |
C7: Define the term "insurance contract" according to IFRS 17. | L7: | | M7: (0.5 points) | N7: a. | O7: You really should memorize this exactly as given: | X7: |
L8: | | O8: a contract under which 1 party (the issuer)… | X8: |
B9: b. | C9: (1.5 points) | L9: | | O9: accepts significant insurance risk from another party (the policyholder)… | X9: |
L10: | | O10: by agreeing to compensate the policyholder… | X10: |
C11: Briefly describe the 3 building blocks of the measurement of insurance contract | L11: | | O11: if a specified uncertain future event (the insured event) adversely affects the policyholder | X11: |
C12: liabilities under IFRS 17. | L12: | | X12: |
L13: | | M13: (1.5 points) | N13: b. | O13: Hint: PV-risk-CSM | X13: |
B14: c. | C14: (1 point) | L14: | | O14: 1. Present Value of future cash flows | X14: |
L15: | | O15: - similar to PV(liabilities) (includes acquisition expenses and all premiums, | X15: |
C16: Identify 2 differences between IFRS 17 and current CIA practice regarding | L16: | | O16: excludes financial risk) | X16: |
C17: measurement of liabilities. | L17: | | O17: 2. risk adjustment for non-financial risk | X17: |
L18: | | O18: - similar to PfADs for non-economic risk (claims development, reinsurance recovery) | X18: |
L19: | | O19: 3. Contractual Service Margin (CSM) | X19: |
L20: | | O20: - represents unearned profit from a group of insurance contracts (so no front-ending | X20: |
L21: | | O21: of profits) | X21: |
L22: | | O22: (new concept in IFRS 17 – current CIA standards do allow front-ending of profits) | X22: |
L23: | | X23: |
L24: | | M24: (1 point) | N24: c. | O24: Any 2 of: | X24: |
L25: | | O25: criteria: | X25: |
L26: | | O26: IFRS 17: allows PAA for short-term contracts without testing whether PAA reasonably | X26: |
L27: | | O27: approximates GMA | X27: |
L28: | | O28: CIA: allows (UEP – DAC) to be used only if it's a reasonable approximation to the explicit | X28: |
L29: | | O29: valuation approach | X29: |
L30: | | O30: DAC deferral: | X30: |
L31: | | O31: IFRS 17: entity may choose deferral or direct expense for short-term contracts | X31: |
L32: | | O32: CIA: no deferral in explicit valuation, but deferral if (UEP – DAC) is held | X32: |
L33: | | O33: DAC amount: | X33: |
L34: | | O34: IFRS 17: allows deferral of DAC that is directly attributable to the portfolio of insurance | X34: |
L35: | | O35: contracts | X35: |
L36: | | O36: CIA: allowable deferral is different | X36: |
L37: | | O37: Discounting of LRC: | X37: |
L38: | | O38: IFRS 17: entity may choose not to discount (if discounting is not significant) | X38: |
L39: | | O39: CIA: requires discounting | X39: |
L40: | | O40: Discounting of LRC: | X40: |
L41: | | O41: IFRS 17: ignore discounting and financial risk for LIC if: | X41: |
L42: | | O42: - PAA is used for LRC | X42: |
L43: | | O43: - LIC cash flows are received ≤ 1 year within incurred date of claims | X43: |
L44: | | O44: CIA: requires discounting | X44: |
L45: | | X45: |
L46: | | X46: |
L47: | | X47: |
A48: ---- | B48: ---- | C48: ---- | D48: ---- | E48: ---- | F48: ---- | G48: ---- | H48: ---- | I48: ---- | J48: ---- | K48: ---- | L48: | | M48: ---- | N48: ---- | O48: ---- | P48: ---- | Q48: ---- | R48: ---- | S48: ---- | T48: ---- | U48: ---- | V48: ---- | W48: ---- | X48: |
L49: | | X49: |
L50: | | X50: |
L51: | | X51: |
L52: | | X52: |
L53: | | X53: |
L54: | | X54: |
L55: | | X55: |
L56: | | X56: |
L57: | | X57: |
L58: | | X58: |
L59: | | X59: |
L60: | | X60: |
L61: | | X61: |
L62: | | X62: |
L63: | | X63: |
L64: | | X64: |
L65: | | X65: |
L66: | | X66: |
L67: | | X67: |
L68: | | X68: |
L69: | | X69: |
L70: | | X70: |
L71: | | X71: |
L72: | | X72: |
L73: | | X73: |
L74: | | X74: |
L75: | | X75: |
L76: | | X76: |
L77: | | X77: |
L78: | | X78: |
L79: | | X79: |
L80: | | X80: |
L81: | | X81: |
L82: | | X82: |
L83: | | X83: |
L84: | | X84: |
L85: | | X85: |
L86: | | X86: |
L87: | | X87: |
L88: | | X88: |
L89: | | X89: |
L90: | | X90: |
L91: | | X91: |
L92: | | X92: |
L93: | | X93: |
L94: | | X94: |
A95: ---- | B95: ---- | C95: ---- | D95: ---- | E95: ---- | F95: ---- | G95: ---- | H95: ---- | I95: ---- | J95: ---- | K95: ---- | L95: | | M95: ---- | N95: ---- | O95: ---- | P95: ---- | Q95: ---- | R95: ---- | S95: ---- | T95: ---- | U95: ---- | V95: ---- | W95: ---- | X95: |

Sheet 5
A1: Exam: | B1: BattleActs 6C Practice Exam 2 (2019.Fall) | L1: | | M1: Exam: | N1: BattleActs 6C Practice Exam 2 (2019.Fall) - [ANSWER SHEET] | X1: |
A2: Question: | B2: 5 | L2: | | M2: Answer: | N2: =B2 -> 5 | X2: |
A3: Points: | B3: 1.5 | C3: points | L3: | | M3: Points: | N3: =B3 -> 1.5 | O3: points | X3: |
L4: | | X4: |
B5: In each of the following scenarios, explain a likely outcome for the insurance company and cite | L5: | | M5: Source: | N5: Land.Cases | X5: |
B6: any relevant precedents used to support the conclusion drawn. | L6: | | X6: |
L7: | | M7: (0.75 points) | N7: a. | O7: likely outcome: | Q7: - insurer must provide coverage | X7: |
B8: a. | C8: (0.75 points) | L8: | | O8: precedent: | Q8: - Amos v ICBC | X8: |
L9: | | O9: explanation: | Q9: PURPOSE TEST: was the car being used in a normal way? Yes. | X9: |
C10: An insured was driving his vehicle in BC when a group of car thieves shot and seriously injured | L10: | | Q10: CAUSALITY TEST: was there a link between the use of the car | X10: |
C11: him while attempting to take his vehicle. His auto policy states that he is entitled to no-fault | L11: | | Q11: and the shooting? Yes. | X11: |
C12: benefits for an injury "that arises out of the ownership, use or operation of a vehicle." The | L12: | | Q12: - Supreme Court agreed that purpose test and causality test had | X12: |
C13: insured argues that the insurance company should provide coverage as the injuries were | L13: | | Q13: been satisfied | X13: |
C14: causally connected to the use of the motor vehicle. | L14: | | Q14: (Note that this may not be applicable in Ontario where the policy term | X14: |
L15: | | Q15: "arising from" is replaced by "caused by".) | X15: |
L16: | | X16: |
B17: b. | C17: (0.75 points) | L17: | | M17: (0.75 points) | N17: b. | O17: likely outcome: | Q17: - city must pay 6 million in damages | X17: |
L18: | | O18: precedent: | Q18: - Belangar v Sudbury | X18: |
C19: A man was injured in a head-on collision on an icy road on Markham Ontario. He claimed | L19: | | O19: explanation: | Q19: - the city claimed they followed established procedures | X19: |
C20: the city was liable for failing to maintain the roadway in good condition during a winter | L20: | | Q20: - appeals court upheld award stating that "standard of care" had | X20: |
C21: storm. The city claimed they had ploughed and salted the road in accordance with accepted | L21: | | Q21: been breached | X21: |
C22: city standards. They had cleared the snow & ice but it had reformed quickly due to the | L22: | | Q22: - city should ADAPT to conditions, not just blindly follow procedures | X22: |
C23: severity of the storm. The plaintiff sought 6 million dollars in damages. | L23: | | X23: |
L24: | | X24: |
L25: | | X25: |
L26: | | X26: |
L27: | | X27: |
L28: | | X28: |
L29: | | X29: |
L30: | | X30: |
L31: | | X31: |
L32: | | X32: |
L33: | | X33: |
L34: | | X34: |
L35: | | X35: |
L36: | | X36: |
L37: | | X37: |
L38: | | X38: |
L39: | | X39: |
L40: | | X40: |
L41: | | X41: |
L42: | | X42: |
L43: | | X43: |
L44: | | X44: |
L45: | | X45: |
L46: | | X46: |
L47: | | X47: |
A48: ---- | B48: ---- | C48: ---- | D48: ---- | E48: ---- | F48: ---- | G48: ---- | H48: ---- | I48: ---- | J48: ---- | K48: ---- | L48: | | M48: ---- | N48: ---- | O48: ---- | P48: ---- | Q48: ---- | R48: ---- | S48: ---- | T48: ---- | U48: ---- | V48: ---- | W48: ---- | X48: |
L49: | | X49: |
L50: | | X50: |
L51: | | X51: |
L52: | | X52: |
L53: | | X53: |
L54: | | X54: |
L55: | | X55: |
L56: | | X56: |
L57: | | X57: |
L58: | | X58: |
L59: | | X59: |
L60: | | X60: |
L61: | | X61: |
L62: | | X62: |
L63: | | X63: |
L64: | | X64: |
L65: |
L66: |
L67: |
L68: |
L69: |
L70: |
L71: |
L72: |
L73: |
L74: |
L75: |
L76: |
L77: |
L78: |
L79: |
L80: |
L81: |
L82: |
L83: |
L84: |
L85: |
L86: |
L87: |
L88: |
L89: |
L90: |
L91: |
L92: |
L93: |
L94: |
A95: ---- | B95: ---- | C95: ---- | D95: ---- | E95: ---- | F95: ---- | G95: ---- | H95: ---- | I95: ---- | J95: ---- | K95: ---- | L95: | | M95: ---- | N95: ---- | O95: ---- | P95: ---- | Q95: ---- | R95: ---- | S95: ---- | T95: ---- | U95: ---- | V95: ---- | W95: ---- | X95: |

Sheet 6
A1: Exam: | B1: BattleActs 6C Practice Exam 2 (2019.Fall) | L1: | | M1: Exam: | N1: BattleActs 6C Practice Exam 2 (2019.Fall) - [ANSWER SHEET] | X1: |
A2: Question: | B2: 6 | L2: | | M2: Answer: | N2: =B2 -> 6 | X2: |
A3: Points: | B3: 2.5 | C3: points | L3: | | M3: Points: | N3: =B3 -> 2.5 | O3: points | X3: |
L4: | | X4: |
B5: a. | C5: (0.5 points) | L5: | | M5: Source: | N5: Dav.NonPec | X5: |
L6: | | X6: |
C7: Describe the Trilogy ruling. | L7: | | M7: (0.5 points) | N7: a. | O7: The Supreme Court of Canada established a $100,000 cap on non-pecuniary damages. | X7: |
L8: | | O8: (later given an inflation-adjustment, and subject to certain exceptions) | X8: |
B9: b. | C9: (0.5 points) | L9: | | X9: |
L10: | | M10: (0.5 points) | N10: b. | O10: Any 2: | X10: |
C11: Describe 2 reasons for the cap on general (non-pecuniary) damages. | L11: | | O11: - limitless claims by the severely injured lead to extravagant awards | X11: |
L12: | | O12: - extravagant awards lead to social burdens that impact availability & affordability | X12: |
B13: c. | C13: (1 point) | L13: | | O13: - plaintiff would already be fully compensated for loss of income & future care | X13: |
L14: | | O14: - ensures predictability of awards (creates a good environment for insurers) | X14: |
C15: Describe 3 exceptions to the cap on non-pecuniary damages and the Supreme Court's | L15: | | X15: |
C16: reason for the exceptions. | L16: | | M16: (1 point) | N16: c. | O16: exceptions: | Q16: - sexual abuse (S.Y. v F.G.C.) | X16: |
L17: | | Q17: - defamation (Hill v Church of Scientology, Young v Bella) | X17: |
B18: d. | C18: (0.5 points) | L18: | | Q18: - negligence causing financial loss | X18: |
L19: | | X19: |
C20: Describe the effect of the cap on equity between major and minor injuries. | L20: | | O20: reason: | P20: - no evidence that cost of insurance or social burden would be increased | X20: |
L21: | | X21: |
L22: | | M22: (0.5 points) | N22: d. | O22: - minor injuries may be over-compensated | X22: |
L23: | | O23: - major injuries may be under-compensated (because past a certain point, there is no | X23: |
L24: | | O24: longer a distinction based on severity) | X24: |
L25: | | X25: |
L26: | | X26: |
L27: | | X27: |
L28: | | X28: |
L29: | | X29: |
L30: | | X30: |
L31: | | X31: |
L32: | | X32: |
L33: | | X33: |
L34: | | X34: |
L35: | | X35: |
L36: | | X36: |
L37: | | X37: |
L38: | | X38: |
L39: | | X39: |
L40: | | X40: |
L41: | | X41: |
L42: | | X42: |
L43: | | X43: |
L44: | | X44: |
L45: | | X45: |
L46: | | X46: |
L47: | | X47: |
A48: ---- | B48: ---- | C48: ---- | D48: ---- | E48: ---- | F48: ---- | G48: ---- | H48: ---- | I48: ---- | J48: ---- | K48: ---- | L48: | | M48: ---- | N48: ---- | O48: ---- | P48: ---- | Q48: ---- | R48: ---- | S48: ---- | T48: ---- | U48: ---- | V48: ---- | W48: ---- | X48: |
L49: | | X49: |
L50: | | X50: |
L51: | | X51: |
L52: | | X52: |
L53: | | X53: |
L54: | | X54: |
L55: | | X55: |
L56: | | X56: |
L57: | | X57: |
L58: | | X58: |
L59: | | X59: |
L60: | | X60: |
L61: | | X61: |
L62: | | X62: |
L63: | | X63: |
L64: | | X64: |
L65: | | X65: |
L66: | | X66: |
L67: | | X67: |
L68: | | X68: |
L69: | | X69: |
L70: | | X70: |
L71: | | X71: |
L72: | | X72: |
L73: | | X73: |
L74: | | X74: |
L75: | | X75: |
L76: | | X76: |
L77: | | X77: |
L78: | | X78: |
L79: | | X79: |
L80: | | X80: |
L81: | | X81: |
L82: | | X82: |
L83: | | X83: |
L84: | | X84: |
L85: | | X85: |
L86: | | X86: |
L87: | | X87: |
L88: | | X88: |
L89: | | X89: |
L90: | | X90: |
L91: | | X91: |
L92: | | X92: |
L93: | | X93: |
L94: | | X94: |
A95: ---- | B95: ---- | C95: ---- | D95: ---- | E95: ---- | F95: ---- | G95: ---- | H95: ---- | I95: ---- | J95: ---- | K95: ---- | L95: | | M95: ---- | N95: ---- | O95: ---- | P95: ---- | Q95: ---- | R95: ---- | S95: ---- | T95: ---- | U95: ---- | V95: ---- | W95: ---- | X95: |

Sheet 7
A1: Exam: | B1: BattleActs 6C Practice Exam 2 (2019.Fall) | L1: | | M1: Exam: | N1: BattleActs 6C Practice Exam 2 (2019.Fall) - [ANSWER SHEET] | X1: |
A2: Question: | B2: 7 | L2: | | M2: Answer: | N2: =B2 -> 7 | X2: |
A3: Points: | B3: 2.5 | C3: points | L3: | | M3: Points: | N3: =B3 -> 2.5 | O3: points | X3: |
L4: | | X4: |
B5: An agricultural producer insures the production of corn under a plan with the | L5: | | M5: Source: | N5: Chev.Agric | X5: | | Y5: Chev.Agric
B6: following details: | L6: | | X6: |
L7: | | M7: (0.75 points) | N7: a. | O7: agricultural insurance: | R7: - protects against production loss | X7: |
C8: area of crop: | E8: 35 hectares | L8: | | O8: agricultural stability: | R8: - protects against margin decline | X8: |
C9: probable yield: | E9: 15,000 kg/ha | L9: | | O9: agricultural recovery: | R9: - protects against disaster | X9: |
C10: coverage level: | E10: 0.8 | L10: | | X10: |
C11: insured price: | E11: $0.26/kg | L11: | | M11: (0.5 points) | N11: b. | O11: A = Area | R11: PG = Production Guarantee | X11: |
L12: | | O12: P = Probable Yield | R12: AP = Actual Production | X12: |
B13: a. | C13: (0.75 points) | L13: | | O13: C = Coverage Level | X13: |
L14: | | X14: |
C15: Growing Forward 2 is a comprehensive federal-provincial-territorial framework for Canada's | L15: | | O15: PG | R15: Indemnity | X15: |
C16: agricultural sector. It consists of 6 Business Risk Management Programmes. Briefly describe | L16: | | O16: = A x P x C | R16: = max(0, PG - AP) x (insured price) | X16: |
C17: 3 Business Risk Management Programmes that could protect this producer against crop | L17: | | O17: = 35 x 15,000 x 80% | R17: = max(0, 420000 - 330000) x 0.26 | X17: |
C18: losses or a drop in the price of the crop. | L18: | | O18: = 420,000 | R18: = 23,400 | X18: |
L19: | | X19: |
B20: b. | C20: (0.5 points) | L20: | | M20: (0.5 points) | N20: c. | O20: i | P20: to reflect current production capability | X20: |
L21: | | O21: ii | P21: Any 1 of: | X21: |
C22: If the actual production of corn in a particular year is 330,000 kg, calculate the indemnity | L22: | | P22: - change in farming or management practices | X22: |
C23: paid to the producer. | L23: | | P23: - change in insurance programme design | X23: |
L24: | | P24: - change in data source or data collection technique | X24: |
B25: c. | C25: (0.5 points) | L25: | | P25: - maturity of perennials (yield would vary of their life cycle) | X25: |
L26: | | P26: - quality variation of crop from year-to-year (possibly due to insured perils) | X26: |
C27: To calculate probable yield for insurance purposes, we normally use an average of | L27: | | X27: |
C28: historical yields. Sometimes, however, historical yields need to be adjusted. | L28: | | M28: (0.75 points) | N28: d. | O28: i | P28: a load in rates to recover deficits and maintain surplus | X28: |
C29: i | D29: What is the general purpose of such a historical adjustment? | L29: | | O29: ii | P29: FOR ALL base & adverse scenarios with: | X29: |
C30: ii | D30: Identify a specific reason for a historical adjustment. | L30: | | P30: initial deficit = 6th yr, 95th percentile | X30: |
L31: | | P31: MUST RECOVER DEFICIT: | X31: |
B32: d. | C32: (0.75 points) | L32: | | P32: - in 15 years on average | X32: |
L33: | | P33: - in 25 years with 80% probability | X33: |
C34: It is important for agricultural insurance to be self-sustainable. | L34: | | X34: |
C35: i | D35: Define the term 'self-sustainability load'. | L35: | | X35: |
C36: ii | D36: What is the statistical definition of 'self-sustainability'? | L36: | | X36: |
L37: | | X37: |
L38: | | X38: |
L39: | | X39: |
L40: | | X40: |
L41: | | X41: |
L42: | | X42: |
L43: | | X43: |
L44: | | X44: |
L45: | | X45: |
L46: | | X46: |
L47: | | X47: |
A48: ---- | B48: ---- | C48: ---- | D48: ---- | E48: ---- | F48: ---- | G48: ---- | H48: ---- | I48: ---- | J48: ---- | K48: ---- | L48: | | M48: ---- | N48: ---- | O48: ---- | P48: ---- | Q48: ---- | R48: ---- | S48: ---- | T48: ---- | U48: ---- | V48: ---- | W48: ---- | X48: |
L49: | | X49: |
L50: | | X50: |
L51: | | X51: |
L52: | | X52: |
L53: | | X53: |
L54: | | X54: |
L55: | | X55: |
L56: | | X56: |
L57: | | X57: |
L58: | | X58: |
L59: | | X59: |
L60: | | X60: |
L61: | | X61: |
L62: | | X62: |
L63: | | X63: |
L64: | | X64: |
L65: |
L66: |
L67: |
L68: |
L69: |
L70: |
L71: |
L72: |
L73: |
L74: |
L75: |
L76: |
L77: |
L78: |
L79: |
L80: |
L81: |
L82: |
L83: |
L84: |
L85: |
L86: |
L87: |
L88: |
L89: |
L90: |
L91: |
L92: |
L93: |
L94: |
A95: ---- | B95: ---- | C95: ---- | D95: ---- | E95: ---- | F95: ---- | G95: ---- | H95: ---- | I95: ---- | J95: ---- | K95: ---- | L95: | | M95: ---- | N95: ---- | O95: ---- | P95: ---- | Q95: ---- | R95: ---- | S95: ---- | T95: ---- | U95: ---- | V95: ---- | W95: ---- | X95: |

Sheet 8
A1: Exam: | B1: BattleActs 6C Practice Exam 2 (2019.Fall) | L1: | | M1: Exam: | N1: BattleActs 6C Practice Exam 2 (2019.Fall) - [ANSWER SHEET] | X1: |
A2: Question: | B2: 8 | L2: | | M2: Answer: | N2: =B2 -> 8 | X2: |
A3: Points: | B3: 3.5 | C3: points | L3: | | M3: Points: | N3: =B3 -> 3.5 | O3: points | X3: |
L4: | | X4: |
B5: a. | C5: (1.25 points) | L5: | | M5: Source: | N5: FA.Dutil | X5: |
L6: | | X6: |
C7: Identify 5 minimum requirements for RSP transfer eligibility. | L7: | | M7: (1.25 points) | N7: a. | O7: - PPA only | X7: |
L8: | | O8: - insured can't be eligible for FARM | X8: |
B9: b. | C9: (0.25 points) | L9: | | O9: - policy must satisfy statutory minimum coverage requirements | X9: |
L10: | | O10: - insurer must follow proper classification and rating, and provide documentation | X10: |
C11: In Ontario, why is only 85% of each risk transferred covered by the RSP. | L11: | | O11: - insurer must use approved rates | X11: |
L12: | | X12: |
B13: c. | C13: (1 point) | L13: | | M13: (0.25 points) | N13: b. | O13: insurer has incentive to: | X13: |
L14: | | O14: - use effective U/W | X14: |
C15: Compare and contrast FARM and RSPs with respect to: | L15: | | O15: - maintain adequate pricing | X15: |
C16: i | D16: admission | L16: | | O16: - manage claims properly | X16: |
C17: ii | D17: participation ratio | L17: | | X17: |
L18: | | M18: (1 point) | N18: c. | O18: admission: | X18: |
B19: d. | C19: (1 point) | L19: | | O19: FARM: | P19: - only if agent/broker cannot place business with a voluntary company | X19: |
L20: | | O20: RSPs: | P20: - use U/W rules of ceding company | X20: |
C21: Given the following information, calculate the company's loss ratio on their share | L21: | | X21: |
C22: of the pool. Assume a provincial expense allowance (PEA) of: | I22: 0.27 | L22: | | O22: participation ratio: | X22: |
L23: | | O23: FARM: | P23: - established separately by jurisdiction, class, AY | X23: |
H24: company | I24: province | L24: | | O24: RSPs: | P24: - established in proportion to direct earned exposures for: | X24: |
C25: direct earned exposures not ceded to the RSP | H25: 2000 | I25: 25000 | L25: | | P25: Total, Voluntary, PPA, Non-Fleet, 3rd Party Liability | X25: |
C26: direct earned premium ceded to the RSP | H26: 40000 | I26: 750000 | L26: | | X26: |
C27: total incurred losses ceded to the RSP | H27: n/a | I27: 1200000 | L27: | | M27: (1 point) | N27: d. | O27: First calculate the participation ratio PR: | X27: |
L28: | | O28: = (company ceded exposures) / (province ceded exposures) | X28: |
L29: | | O29: = 2,000 / 25,000 | X29: | | Y29: = | Z29: =H25 -> 2000 | AA29: / | AB29: =I25 -> 25000
L30: | | O30: = 8% | X30: | | Y30: = | Z30: =Z29/AB29 -> 0.08
L31: | | X31: |
L32: | | O32: Now, the company's share of the losses is | X32: |
L33: | | O33: = (province ceded losses) x PR | X33: |
L34: | | O34: = 1.200,000 x 8% | X34: | | Y34: = | Z34: =I27 -> 1200000 | AA34: x | AB34: =Z30 -> 0.08
L35: | | O35: = 96,000 | X35: | | Y35: = | Z35: =Z34*AB34 -> 96000
L36: | | X36: |
L37: | | O37: And the company's share of the premium is | X37: |
L38: | | O38: = (province ceded premiums) x PR + (company ceded premium) x PEA | X38: | | Y38: = | Z38: =I26 -> 750000 | AA38: x | AB38: =Z30 -> 0.08 | AC38: + | AD38: =H26 -> 40000 | AE38: x | AF38: =I22 -> 0.27
L39: | | O39: = 750,000 x 8% + 40,000 x 27% | X39: | | Y39: = | Z39: =Z38*AB38+AD38*AF38 -> 70800
L40: | | O40: = 70,800 | X40: |
L41: | | X41: |
L42: | | O42: Putting it all together, the loss ratio is | X42: |
L43: | | O43: = (company's share of losses) / (company's share of premium) | X43: | | Y43: = | Z43: =Z35 -> 96000 | AA43: / | AB43: =Z39 -> 70800
L44: | | O44: = 96,000 / 70,800 | X44: | | Y44: = | Z44: =Z43/AB43 -> 1.355932203
L45: | | O45: = 135.6% | Q45: <== final answer to part (d) | X45: |
L46: | | X46: |
L47: | | X47: |
A48: ---- | B48: ---- | C48: ---- | D48: ---- | E48: ---- | F48: ---- | G48: ---- | H48: ---- | I48: ---- | J48: ---- | K48: ---- | L48: | | M48: ---- | N48: ---- | O48: ---- | P48: ---- | Q48: ---- | R48: ---- | S48: ---- | T48: ---- | U48: ---- | V48: ---- | W48: ---- | X48: |
L49: | | X49: |
L50: | | X50: |
L51: | | X51: |
L52: | | X52: |
L53: | | X53: |
L54: | | X54: |
L55: | | X55: |
L56: | | X56: |
L57: | | X57: |
L58: | | X58: |
L59: | | X59: |
L60: | | X60: |
L61: | | X61: |
L62: | | X62: |
L63: | | X63: |
L64: | | X64: |
L65: |
L66: |
L67: |
L68: |
L69: |
L70: |
L71: |
L72: |
L73: |
L74: |
L75: |
L76: |
L77: |
L78: |
L79: |
L80: |
L81: |
L82: |
L83: |
L84: |
L85: |
L86: |
L87: |
L88: |
L89: |
L90: |
L91: |
L92: |
L93: |
L94: |
A95: ---- | B95: ---- | C95: ---- | D95: ---- | E95: ---- | F95: ---- | G95: ---- | H95: ---- | I95: ---- | J95: ---- | K95: ---- | L95: | | M95: ---- | N95: ---- | O95: ---- | P95: ---- | Q95: ---- | R95: ---- | S95: ---- | T95: ---- | U95: ---- | V95: ---- | W95: ---- | X95: |

Sheet 9
A1: Exam: | B1: BattleActs 6C Practice Exam 2 (2019.Fall) | L1: | | M1: Exam: | N1: BattleActs 6C Practice Exam 2 (2019.Fall) - [ANSWER SHEET] | X1: |
A2: Question: | B2: 9 | L2: | | M2: Answer: | N2: =B2 -> 9 | X2: |
A3: Points: | B3: 2 | C3: points | L3: | | M3: Points: | N3: =B3 -> 2 | O3: points | X3: |
L4: | | X4: |
B5: a. | C5: (0.5 points) | L5: | | M5: Source: | N5: IIC.Terrorism | X5: |
L6: | | X6: |
C7: Briefly describe how terrorism has changed in recent years. | L7: | | M7: (0.5 points) | N7: a. | O7: Any 2 of: | X7: |
L8: | | O8: organized attacks → lone actors | X8: |
B9: b. | C9: (0.75 points) | L9: | | O9: bombings → armed attacks | X9: |
L10: | | O10: state targets → civilian targets | X10: |
C11: Briefly describe how terrorism is defined in Canada. | L11: | | X11: |
L12: | | M12: (0.75 points) | N12: b. | O12: Hint: RIP | X12: |
B13: c. | C13: (0.5 points) | L13: | | O13: Terrorism is defined as an act committed for any of these purposes: | X13: |
L14: | | O14: Religious | X14: |
C15: Identify 2 considerations in assessing terrorism risk for a business. | L15: | | O15: Ideological | X15: |
L16: | | O16: Political | X16: |
B17: d. | C17: (0.25 points) | L17: | | X17: |
L18: | | M18: (0.5 points) | N18: c. | O18: Any 2 of: | X18: |
C19: How is terrorism priced in Canada? | L19: | | O19: - attractiveness of location as a terror target (# of employees, profile of business) | X19: |
L20: | | O20: - accessibility of location (security, # of entry points) | X20: |
L21: | | O21: - financial impact (risk to assets, business interruption) | X21: |
L22: | | O22: - crisis management framework | X22: |
L23: | | X23: |
L24: | | M24: (0.25 points) | N24: d. | O24: - a percentage of property premium | X24: |
L25: | | X25: |
L26: | | X26: |
L27: | | X27: |
L28: | | X28: |
L29: | | X29: |
L30: | | X30: |
L31: | | X31: |
L32: | | X32: |
L33: | | X33: |
L34: | | X34: |
L35: | | X35: |
L36: | | X36: |
L37: | | X37: |
L38: | | X38: |
L39: | | X39: |
L40: | | X40: |
L41: | | X41: |
L42: | | X42: |
L43: | | X43: |
L44: | | X44: |
L45: | | X45: |
L46: | | X46: |
L47: | | X47: |
A48: ---- | B48: ---- | C48: ---- | D48: ---- | E48: ---- | F48: ---- | G48: ---- | H48: ---- | I48: ---- | J48: ---- | K48: ---- | L48: | | M48: ---- | N48: ---- | O48: ---- | P48: ---- | Q48: ---- | R48: ---- | S48: ---- | T48: ---- | U48: ---- | V48: ---- | W48: ---- | X48: |
L49: | | X49: |
L50: | | X50: |
L51: | | X51: |
L52: | | X52: |
L53: | | X53: |
L54: | | X54: |
L55: | | X55: |
L56: | | X56: |
L57: | | X57: |
L58: | | X58: |
L59: | | X59: |
L60: | | X60: |
L61: | | X61: |
L62: | | X62: |
L63: | | X63: |
L64: | | X64: |
L65: | | X65: |
L66: | | X66: |
L67: | | X67: |
L68: | | X68: |
L69: | | X69: |
L70: | | X70: |
L71: | | X71: |
L72: | | X72: |
L73: | | X73: |
L74: | | X74: |
L75: | | X75: |
L76: | | X76: |
L77: | | X77: |
L78: | | X78: |
L79: | | X79: |
L80: | | X80: |
L81: | | X81: |
L82: | | X82: |
L83: | | X83: |
L84: | | X84: |
L85: | | X85: |
L86: | | X86: |
L87: | | X87: |
L88: | | X88: |
L89: | | X89: |
L90: | | X90: |
L91: | | X91: |
L92: | | X92: |
L93: | | X93: |
L94: | | X94: |
A95: ---- | B95: ---- | C95: ---- | D95: ---- | E95: ---- | F95: ---- | G95: ---- | H95: ---- | I95: ---- | J95: ---- | K95: ---- | L95: | | M95: ---- | N95: ---- | O95: ---- | P95: ---- | Q95: ---- | R95: ---- | S95: ---- | T95: ---- | U95: ---- | V95: ---- | W95: ---- | X95: |

Sheet 10
A1: Exam: | B1: BattleActs 6C Practice Exam 2 (2019.Fall) | L1: | | M1: Exam: | N1: BattleActs 6C Practice Exam 2 (2019.Fall) - [ANSWER SHEET] | X1: |
A2: Question: | B2: 10 | L2: | | M2: Answer: | N2: =B2 -> 10 | X2: |
A3: Points: | B3: 1 | C3: points | L3: | | M3: Points: | N3: =B3 -> 1 | O3: points | X3: |
L4: | | X4: |
B5: a. | C5: (1 point) | L5: | | M5: Source: | N5: ICBC.Affordable | X5: |
L6: | | X6: |
C7: According to "ICBC Affordable and effective auto insurance – A new road forward for | L7: | | M7: (1 point) | N7: a. | O7: Any 4 of: | X7: |
C8: British Columbia", identify 4 guiding principles of an effective auto insurance system. | L8: | | O8: Fair, Affordable, Sustainable, Efficient, Simple | X8: |
L9: | | X9: |
L10: | | X10: |
L11: | | X11: |
L12: | | X12: |
L13: | | X13: |
L14: | | X14: |
L15: | | X15: |
L16: | | X16: |
L17: | | X17: |
L18: | | X18: |
L19: | | X19: |
L20: | | X20: |
L21: | | X21: |
L22: | | X22: |
L23: | | X23: |
L24: | | X24: |
L25: | | X25: |
L26: | | X26: |
L27: | | X27: |
L28: | | X28: |
L29: | | X29: |
L30: | | X30: |
L31: | | X31: |
L32: | | X32: |
L33: | | X33: |
L34: | | X34: |
L35: | | X35: |
L36: | | X36: |
L37: | | X37: |
L38: | | X38: |
L39: | | X39: |
L40: | | X40: |
L41: | | X41: |
L42: | | X42: |
L43: | | X43: |
L44: | | X44: |
L45: | | X45: |
L46: | | X46: |
L47: | | X47: |
A48: ---- | B48: ---- | C48: ---- | D48: ---- | E48: ---- | F48: ---- | G48: ---- | H48: ---- | I48: ---- | J48: ---- | K48: ---- | L48: | | M48: ---- | N48: ---- | O48: ---- | P48: ---- | Q48: ---- | R48: ---- | S48: ---- | T48: ---- | U48: ---- | V48: ---- | W48: ---- | X48: |
L49: | | X49: |
L50: | | X50: |
L51: | | X51: |
L52: | | X52: |
L53: | | X53: |
L54: | | X54: |
L55: | | X55: |
L56: | | X56: |
L57: | | X57: |
L58: | | X58: |
L59: | | X59: |
L60: | | X60: |
L61: | | X61: |
L62: | | X62: |
L63: | | X63: |
L64: | | X64: |
L65: |
L66: |
L67: |
L68: |
L69: |
L70: |
L71: |
L72: |
L73: |
L74: |
L75: |
L76: |
L77: |
L78: |
L79: |
L80: |
L81: |
L82: |
L83: |
L84: |
L85: |
L86: |
L87: |
L88: |
L89: |
L90: |
L91: |
L92: |
L93: |
L94: |
A95: ---- | B95: ---- | C95: ---- | D95: ---- | E95: ---- | F95: ---- | G95: ---- | H95: ---- | I95: ---- | J95: ---- | K95: ---- | L95: | | M95: ---- | N95: ---- | O95: ---- | P95: ---- | Q95: ---- | R95: ---- | S95: ---- | T95: ---- | U95: ---- | V95: ---- | W95: ---- | X95: |

Sheet 11
A1: Exam: | B1: BattleActs 6C Practice Exam 2 (2019.Fall) | L1: | | M1: Exam: | N1: BattleActs 6C Practice Exam 2 (2019.Fall) - [ANSWER SHEET] | X1: |
A2: Question: | B2: 11 | L2: | | M2: Answer: | N2: =B2 -> 11 | X2: |
A3: Points: | B3: 2.75 | C3: points | L3: | | M3: Points: | N3: =B3 -> 2.75 | O3: points | X3: |
L4: | | X4: |
B5: a. | C5: (0.5 points) | L5: | | M5: Source: | N5: IBC.Flood | X5: |
L6: | | X6: |
C7: Identify 2 reasons that coverage for overland flooding has generally not | L7: | | M7: (0.5 points) | N7: a. | O7: Any 2 of: [Hint: adverse-under-maps] | X7: |
C8: been offered to residential customers in Canada. | L8: | | O8: adverse: | P8: - adverse selection (if offered, only people who definitely need it would | X8: |
L9: | | P9: buy it, and it would be too expensive) | X9: |
B10: b. | C10: (0.75 points) | L10: | | O10: under: | P10: - government under-investment in risk planning and mitigation | X10: |
L11: | | O11: maps: | P11: - lack of effective flood hazard maps | X11: |
C12: Identify 3 areas of government under-investment in risk planning and mitigation. | L12: | | X12: |
L13: | | M13: (0.75 points) | N13: b. | O13: Any 3 of: [Hint: BAIL me out!] | X13: |
B14: c. | C14: (0.5 points) | L14: | | O14: Building codes that are obsolete | X14: |
L15: | | O15: Asset management that is poor | X15: |
C16: Even when private flood insurance is widely available, what useful role can the | L16: | | O16: Infrastructure is lacking (levies, sewers,...) | X16: |
C17: government still provide in ensuring the availability & affordability of flood insurance. | L17: | | O17: Land use planning is inadequate | X17: |
L18: | | X18: |
B19: d. | C19: (1 point) | L19: | | M19: (0.5 points) | N19: c. | O19: Any 2 of: | X19: |
L20: | | O20: - private insurance may have coverage limits that are exceeded in a major disaster | X20: |
C21: Briefly describe the U.K. approach to flood insurance. Your answer should cover 4 separate | L21: | | O21: (so government pays the excess) | X21: |
C22: points. | L22: | | O22: - government may subsidize otherwise uninsurable risks through taxation | X22: |
L23: | | O23: - provide accurate flood maps | X23: |
L24: | | O24: - provide good infrastructure (levies, sewers) | X24: |
L25: | | O25: - educate public on ways to mitigate and financially plan for flood losses | X25: |
L26: | | O26: - provide incentives for public to mitigate risks by limiting government compensation | X26: |
L27: | | X27: |
L28: | | M28: (1 point) | N28: d. | O28: Any 4 of: | P28: (regarding the U.K. flood insurance program) | X28: |
L29: | | O29: model: | Q29: - private | X29: |
L30: | | O30: purchase: | Q30: - voluntary | X30: |
L31: | | O31: package: | Q31: - bundled with homeowner's insurance | X31: |
L32: | | O32: pricing: | Q32: - risk-based | X32: |
L33: | | O33: subsidies: | Q33: - cross-subsidized among policyholders | X33: |
L34: | | O34: government: | Q34: - acts as an enabler through risk: mitigation, flood mapping, zoning | X34: |
L35: | | X35: |
L36: | | X36: |
L37: | | X37: |
L38: | | X38: |
L39: | | X39: |
L40: | | X40: |
L41: | | X41: |
L42: | | X42: |
L43: | | X43: |
L44: | | X44: |
L45: | | X45: |
L46: | | X46: |
L47: | | X47: |
A48: ---- | B48: ---- | C48: ---- | D48: ---- | E48: ---- | F48: ---- | G48: ---- | H48: ---- | I48: ---- | J48: ---- | K48: ---- | L48: | | M48: ---- | N48: ---- | O48: ---- | P48: ---- | Q48: ---- | R48: ---- | S48: ---- | T48: ---- | U48: ---- | V48: ---- | W48: ---- | X48: |
L49: | | X49: |
L50: | | X50: |
L51: | | X51: |
L52: | | X52: |
L53: | | X53: |
L54: | | X54: |
L55: | | X55: |
L56: | | X56: |
L57: | | X57: |
L58: | | X58: |
L59: | | X59: |
L60: | | X60: |
L61: | | X61: |
L62: | | X62: |
L63: | | X63: |
L64: | | X64: |
L65: |
L66: |
L67: |
L68: |
L69: |
L70: |
L71: |
L72: |
L73: |
L74: |
L75: |
L76: |
L77: |
L78: |
L79: |
L80: |
L81: |
L82: |
L83: |
L84: |
L85: |
L86: |
L87: |
L88: |
L89: |
L90: |
L91: |
L92: |
L93: |
L94: |
A95: ---- | B95: ---- | C95: ---- | D95: ---- | E95: ---- | F95: ---- | G95: ---- | H95: ---- | I95: ---- | J95: ---- | K95: ---- | L95: | | M95: ---- | N95: ---- | O95: ---- | P95: ---- | Q95: ---- | R95: ---- | S95: ---- | T95: ---- | U95: ---- | V95: ---- | W95: ---- | X95: |

Sheet 12
A1: Exam: | B1: BattleActs 6C Practice Exam 2 (2019.Fall) | L1: | | M1: Exam: | N1: BattleActs 6C Practice Exam 2 (2019.Fall) - [ANSWER SHEET] | X1: |
A2: Question: | B2: 12 | L2: | | M2: Answer: | N2: =B2 -> 12 | X2: |
A3: Points: | B3: 4 | C3: points | L3: | | M3: Points: | N3: =B3 -> 4 | O3: points | X3: |
L4: | | X4: |
B5: a. | C5: (3 points) | L5: | | M5: Source: | N5: BCAR.Cdn2018 | X5: |
L6: | | X6: |
C7: Determine the final A.M. Best rating for the following insurer. | L7: | | M7: (3 points) | N7: a. | O7: step 1: | P7: calculate AC starting with Reported Capital (surplus) and making the indicated | X7: |
L8: | | P8: adjustments | X8: |
G9: Required Capital Amounts | L9: | | P9: add: | Q9: equity adjustments | X9: |
C10: asset risk | G10: VaR 95 | H10: VaR 99 | I10: VaR 99.5 | J10: VaR 99.6 | L10: | | P10: subtract: | Q10: intangibles & goodwill | X10: |
C11: (B1) | D11: Fixed income securities risk | G11: 190 | H11: 245.6677383 | I11: 265.6434095 | J11: 270.0347554 | L11: | | X11: |
C12: (B2) | D12: Equity securities risk | G12: 113 | H12: 146.1076549 | I12: 157.9879225 | J12: 160.5996177 | L12: | | O12: then | P12: AC | Q12: = | R12: =G24 -> 2660 | S12: + | T12: =SUM(G26:G28) -> -76 | U12: - | V12: =SUM(G35:G36) -> 133 | X12: |
C13: (B3) | D13: Interest rate risk | G13: 116 | H13: 149.9866192 | I13: 162.1822921 | J13: 164.8633244 | L13: | | Q13: = | R13: 2451 | X13: |
C14: (B4) | D14: Credit risk | G14: 110 | H14: 142.2286906 | I14: 153.7935529 | J14: 156.335911 | L14: | | X14: |
C15: U/W risk | L15: | | O15: step 2: | P15: calculate NRC for each VaR level using the covariance adjustment formula | X15: |
C16: (B5) | D16: Reserve risk | G16: 700 | H16: 1048.878011 | I16: 1187.049471 | J16: 1230.928349 | L16: | | X16: |
C17: (B6) | D17: Premium risk | G17: 650 | H17: 973.9581528 | I17: 1102.260224 | J17: 1143.004895 | L17: | | O17: NRC | X17: |
C18: other risk | L18: | | O18: = (B7) + SQRT [ (B1)^2 + (B2)^2 + (B3)^2 + (0.5x(B4))^2 + (0.5x(B4) + (B5))^2 + (B6)^2 + (B8)^2 ] | X18: |
C19: (B7) | D19: Business risk | G19: 49 | H19: 49 | I19: 49 | J19: 49 | L19: | | X19: |
C20: (B8) | D20: Catastrophe risk | G20: 100 | H20: 124.1935484 | I20: 185.483871 | J20: 225.8064516 | L20: | | R20: VaR 95 | S20: VaR 99 | T20: VaR 99.5 | U20: VaR 99.6 | X20: |
L21: | | P21: NRC | Q21: = | R21: =G19+SQRT(G11^2+G12^2+G13^2+G17^2+G20^2+(0.5*G14)^2+(0.5*G14+G16)^2) -> 1082.380375 | S21: =H19+SQRT(H11^2+H12^2+H13^2+H17^2+H20^2+(0.5*H14)^2+(0.5*H14+H16)^2) -> 1574.665337 | T21: =I19+SQRT(I11^2+I12^2+I13^2+I17^2+I20^2+(0.5*I14)^2+(0.5*I14+I16)^2) -> 1773.727456 | U21: =J19+SQRT(J11^2+J12^2+J13^2+J17^2+J20^2+(0.5*J14)^2+(0.5*J14+J16)^2) -> 1838.743844 | X21: |
L22: | | X22: |
C23: Recap of Available Capital (AC) | G23: amount | L23: | | O23: step 3: | P23: calculate BCAR corresponding to each VaR level using the standard formula | X23: |
C24: Reported Capital (surplus) | G24: 2660 | L24: | | X24: |
C25: Equity adjustments (lura) | L25: | | P25: BCAR | Q25: = | R25: (AC - NRC) / AC x 100 | X25: |
C26: loss reserves | G26: 95 | L26: | | X26: |
C27: unearned premium | G27: -190 | L27: | | R27: VaR 95 | S27: VaR 99 | T27: VaR 99.5 | U27: VaR 99.6 | X27: |
C28: reinsurance | G28: 19 | L28: | | P28: BCAR | Q28: = | R28: =($R13-R21)/$R13*100 -> 55.83923397 | S28: =($R13-S21)/$R13*100 -> 35.75416824 | T28: =($R13-T21)/$R13*100 -> 27.63249871 | U28: =($R13-U21)/$R13*100 -> 24.97985131 | X28: |
C29: assets | G29: 0 | L29: | | X29: |
C30: Debt adjustments (sd) | L30: | | O30: step 4: | P30: use the BCAR results at the different VaR levels to determine the A.M. Best financial | X30: |
C31: surplus notes | G31: 0 | L31: | | P31: strength rating | X31: |
C32: debt service requirements | G32: 0 | L32: | | X32: |
C33: Other adjustments (fig) | L33: | | P33: rating | Q33: = | R33: very strong | T33: <== final answer | X33: |
C34: future operating losses | G34: 0 | L34: | | X34: |
C35: intangibles | G35: 66.5 | L35: | | M35: (1 point) | N35: b. | O35: Hint: Q2-SALAMI (Cured Salami - put meat on the bones of the basic BCAR numbers) | X35: |
C36: goodwill | G36: 66.5 | L36: | | O36: Any 4 | X36: |
L37: | | O37: Q2: Quality of capital, Quality of reinsurance | X37: |
B38: b. | C38: (1 point) | L38: | | O38: Stress testing (how well does the company perform under stress) | X38: |
L39: | | O39: Adequacy of reserves | X39: |
C40: Identify 4 considerations other than BCAR score that impact balance sheet strength | L40: | | O40: Liquidity of Capital | X40: |
C41: assessment. | L41: | | O41: Actions of affiliates (affiliates could drag you down or pull you up) | X41: |
L42: | | O42: Matching of assets & liabilities (this is desirable for paying your bills on time) | X42: |
L43: | | O43: Internal capital models (is there a good procedure for assessing capital needs) | X43: |
L44: | | X44: |
L45: | | M45: TIP: | N45: Make sure you also look at the practice template for the calculation of B5. This is in BattleQuiz #4 | X45: |
L46: | | N46: of the BCAR.Cdn2018 wiki article. | X46: |
L47: | | X47: |
A48: ---- | B48: ---- | C48: ---- | D48: ---- | E48: ---- | F48: ---- | G48: ---- | H48: ---- | I48: ---- | J48: ---- | K48: ---- | L48: | | M48: ---- | N48: ---- | O48: ---- | P48: ---- | Q48: ---- | R48: ---- | S48: ---- | T48: ---- | U48: ---- | V48: ---- | W48: ---- | X48: |
L49: | | X49: |
L50: | | X50: |
L51: | | X51: |
L52: | | X52: |
L53: | | X53: |
L54: | | X54: |
L55: | | X55: |
L56: | | X56: |
L57: | | X57: |
L58: | | X58: |
L59: | | X59: |
L60: | | X60: |
L61: | | X61: |
L62: | | X62: |
L63: | | X63: |
L64: | | X64: |
L65: |
L66: |
L67: |
L68: |
L69: |
L70: |
L71: |
L72: |
L73: |
L74: |
L75: |
L76: |
L77: |
L78: |
L79: |
L80: |
L81: |
L82: |
L83: |
L84: |
L85: |
L86: |
L87: |
L88: |
L89: |
L90: |
L91: |
L92: |
L93: |
L94: |
A95: ---- | B95: ---- | C95: ---- | D95: ---- | E95: ---- | F95: ---- | G95: ---- | H95: ---- | I95: ---- | J95: ---- | K95: ---- | L95: | | M95: ---- | N95: ---- | O95: ---- | P95: ---- | Q95: ---- | R95: ---- | S95: ---- | T95: ---- | U95: ---- | V95: ---- | W95: ---- | X95: |

Sheet 13
A1: Exam: | B1: BattleActs 6C Practice Exam 2 (2019.Fall) | L1: | | M1: Exam: | N1: BattleActs 6C Practice Exam 2 (2019.Fall) - [ANSWER SHEET] | X1: |
A2: Question: | B2: 13 | L2: | | M2: Answer: | N2: =B2 -> 13 | X2: |
A3: Points: | B3: 7 | C3: points | L3: | | M3: Points: | N3: =B3 -> 7 | O3: points | X3: |
L4: | | X4: |
B5: a. | C5: (2 points) | L5: | | M5: Source: | N5: OSFI.MCT | X5: | | Y5: OSFI.MCT
L6: | | X6: |
C7: Given the following information, calculate the MCT capital available. | L7: | | M7: (2 points) | N7: a. | O7: capital available gross of deductions: | S7: =SUM(H9:H16) -> 69500 | T7: (sum entries in first table) | X7: |
L8: | | O8: deduction for unregistered reinsurance: | S8: 0 | T8: (see full solution in external PDF) | X8: |
D9: qualifying category A common shares | H9: 28500 | L9: | | O9: deduction for excess B & C capital: | S9: 1625 | T9: (see full solution in external PDF) | X9: |
D10: contributed surplus | H10: 2000 | L10: | | O10: MCT net capital available | S10: =S7-S8-S9 -> 67875 | X10: |
D11: Retained Earnings | H11: 6500 | L11: | | X11: |
D12: reserves | H12: 2500 | L12: | | M12: (4.5 points) | N12: b. | O12: capital required for insurance risk: | S12: =SUM(S13:S16) -> 35584 | T12: (sum the components) | X12: |
D13: AOCI | H13: 7000 | L13: | | O13: component: unpaid claims | S13: 14070 | T13: (see full solution in external PDF) | X13: |
D14: qualifying category B instruments | H14: 16500 | L14: | | O14: component: premium liabilities | S14: 14514 | T14: (see full solution in external PDF) | X14: |
D15: qualifying category C instruments | H15: 6000 | L15: | | O15: component: unregistered reinsurance | S15: =I55 -> 2000 | T15: (given) | X15: |
D16: non-controlling interests | H16: 500 | L16: | | O16: component: catastrophes | S16: =I56 -> 5000 | T16: (given) | X16: |
L17: | | X17: |
C18: You'll also need some information on reinsurance ceded to unregistered reinsurers: | L18: | | O18: capital required for market risk: | S18: =SUM(S19:S22) -> 9000 | T18: (sum the components) [Hint: Mr. IFER] | X18: |
L19: | | O19: component: interest rate risk | S19: =H58 -> 3000 | T19: (given) | X19: |
D20: UEP ceded: | E20: ($) UnEarned Premiums ceded to assuming reinsurer | L20: | | O20: component: foreign exchange | S20: =H59 -> 1000 | T20: (given) | X20: |
D21: O/S Recov: | E21: ($) OutStanding losses Recoverable from assuming reinsurer | L21: | | O21: component: equity | S21: =H60 -> 4500 | T21: (given) | X21: |
D22: Reins Recv: | E22: ($) Reinsurance Receivable | L22: | | O22: component: real estate | S22: =H61 -> 500 | T22: (given) | X22: |
D23: Reins Pay: | E23: ($) Reinsurance Payable | L23: | | X23: |
D24: NOD: | E24: ($) Non-Owned Deposits (RSA + Other) & includes FUNDS to secure pmt | L24: | | O24: capital required for credit risk: | S24: =H62 -> 4550 | T24: (given) | X24: | | Y24: =S18+S24 -> 13550 | Z24: = A = C + M
E25: from assuming insurer (the FUNDS inclusion is new for 2018) | L25: | | X25: |
D26: LOC: | E26: ($) Letters Of Credit | L26: | | O26: capital required for operational risk: | S26: 10597 | T26: (see full solution in external PDF) | X26: |
L27: | | X27: |
D28: UEP | E28: O/S | F28: Reins | G28: Reins | L28: | | O28: MCT minimum capital required: | S28: =Y28 -> 36367.58086 | X28: | | Y28: =(S12+S18+S24+S26-Y29)/1.5 -> 36367.58086 | Z28: = MinCapReq
D29: ceded | E29: Recov | F29: Recv | G29: Pay | H29: NOD | I29: LOC | L29: | | O29: diversification credit: | S29: =Y29 -> 5179.628704 | X29: | | Y29: =Y24+S12-SQRT(Y24^2+S12^2+2*0.5*Y24*S12) -> 5179.628704 | Z29: = DC
D30: 15000 | E30: 5000 | F30: 2000 | G30: 9000 | H30: 8000 | I30: 6000 | L30: | | X30: |
L31: | | M31: (0.5 points) | N31: c. | O31: MCT ratio: | Q31: = CapAvail / minCapReq | X31: |
B32: b. | C32: (4.5 points) | L32: | | Q32: = 67,875 / 36,368 | X32: |
L33: | | Q33: = 187% | X33: | | Y33: =S10/S28 -> 1.866360049 | Z33: = MCT
C34: Given the following information, calculate the MCT minimum capital required. | L34: | | X34: |
L35: | | O35: This is ABOVE the supervisery target of 150%. (They would NOT be under increased | X35: |
D36: Line of | E36: net | H36: * net unpaid is discounted but excludes | L36: | | O36: scrutiny by OSFI.) | X36: |
D37: Business | E37: unpaid * | F37: margin | H37: PfADs | L37: | | X37: |
D38: Line 1 | E38: 49000 | F38: 0.13 | L38: | | X38: |
D39: Line 2 | E39: 77000 | F39: 0.1 | L39: | | X39: |
L40: | | X40: |
D41: Line of | E41: prem | G41: DWP | H41: AWP | I41: CWP | L41: | | X41: |
D42: Business | E42: liabs | F42: margin | G42: (12 mths) | H42: (12 mths) | I42: (12 mths) | L42: | | X42: |
D43: Line 1 | E43: 15000 | F43: 0.18 | G43: 81000 | H43: 20000 | I43: 10000 | L43: | | X43: |
D44: Line 2 | E44: 60000 | F44: 0.16 | G44: 104000 | H44: 23000 | I44: 28000 | L44: | | X44: |
L45: | | X45: |
C46: Question continues on next page… | L46: | | X46: |
L47: | | X47: |
A48: ---- | B48: ---- | C48: ---- | D48: ---- | E48: ---- | F48: ---- | G48: ---- | H48: ---- | I48: ---- | J48: ---- | K48: ---- | L48: | | M48: ---- | N48: ---- | O48: ---- | P48: ---- | Q48: ---- | R48: ---- | S48: ---- | T48: ---- | U48: ---- | V48: ---- | W48: ---- | X48: |
L49: | | X49: |
A50: Exam: | B50: BattleActs 6C Practice Exam 1 (2018.Fall) | L50: | | X50: |
A51: Question: | B51: 13 (continued) | L51: | | X51: |
L52: | | X52: |
C53: These 2 amounts relate to components of insurance risk: | L53: | | X53: |
L54: | | X54: |
D55: capital required for unregistered reinsurers: | I55: 2000 | L55: | | X55: |
D56: capital required for catastrophes: | I56: 5000 | L56: | | X56: |
L57: | | X57: |
C58: The capital required for interest rate risk is: | H58: 3000 | L58: | | X58: |
C59: The capital required for foreign exchange risk is: | H59: 1000 | L59: | | X59: |
C60: The capital required for equity risk is: | H60: 4500 | L60: | | X60: |
C61: The capital required for real estate risk is: | H61: 500 | L61: | | X61: |
C62: The capital required for credit risk is: | H62: 4550 | L62: | | X62: |
L63: | | X63: |
C64: Here is some more information that you'll need: | L64: | | X64: |
L65: | | X65: |
D66: AWP(ig): | E66: ($) AWP (last 12 mths) from intra-group pooling | L66: | | X66: |
D67: CWP(ig): | E67: ($) CWP (last 12 mths) from intra-group pooling | L67: | | X67: |
L68: | | X68: |
D69: DWP | E69: AWP | F69: CWP | G69: growth | H69: AWP(ig): | I69: CWP(ig): | L69: | | X69: |
D70: 185000 | E70: 43000 | F70: 38000 | G70: 0.22 | H70: 0 | I70: 0 | L70: | | X70: |
L71: | | X71: |
G72: risk factor | L72: | | X72: |
D73: DWP over last 12 months | G73: 0.025 | L73: | | X73: |
D74: AWP over last 12 months | G74: 0.0175 | L74: | | X74: |
D75: CWP over last 12 months | G75: 0.025 | L75: | | X75: |
D76: AWP(ig) over last 12 months | G76: 0.0075 | L76: | | X76: |
D77: CWP(ig) over last 12 months | G77: 0.0075 | L77: | | X77: |
D78: premium growth above 20% | G78: 0.025 | L78: | | X78: |
D79: capital factor * | G79: 0.085 | L79: | | X79: |
L80: | | X80: |
D81: * capital factor applies to total capital required BEFORE operational risk margin | L81: | | X81: |
D82: and diversification credit. | L82: | | X82: |
L83: | | X83: |
B84: c. | C84: (0.5 point) | L84: | | X84: |
L85: | | X85: |
C86: Calculate the MCT ratio and state whether it is above or below the supervisory target. | L86: | | X86: |
L87: | | X87: |
L88: | | X88: |
L89: | | X89: |
L90: | | X90: |
L91: | | X91: |
L92: | | X92: |
L93: | | X93: |
L94: | | X94: |
L95: | | X95: |
A96: ---- | B96: ---- | C96: ---- | D96: ---- | E96: ---- | F96: ---- | G96: ---- | H96: ---- | I96: ---- | J96: ---- | K96: ---- | L96: | | M96: ---- | N96: ---- | O96: ---- | P96: ---- | Q96: ---- | R96: ---- | S96: ---- | T96: ---- | U96: ---- | V96: ---- | W96: ---- | X96: |
A98: Exam: | B98: BattleActs 6C Practice Exam 1 (2018.Fall) | L98: | | M98: Exam: | N98: BattleActs 6C Practice Exam 1 (2018.Fall) - [ANSWER SHEET] | X98: |
A99: Question: | B99: 13 | L99: | | M99: Answer: | N99: =B99 -> 13 | X99: |
A100: Points: | C100: points | L100: | | M100: Points: | N100: =B100 -> 0 | O100: points | X100: |
A101: ORIGINAL | L101: | | X101: |
B102: a. | C102: (2 points) | L102: | | M102: Source: | X102: |
L103: | | X103: |
C104: Given the following information, calculate the MCT capital available. | L104: | | M104: (2 points) | N104: a. | O104: capital available gross of deductions: | S104: =SUM(H106:H113) -> 67600 | T104: (sum entries in first table) | X104: |
L105: | | O105: deduction for unregistered reinsurance: | S105: 10000 | T105: (see full solution in external PDF) | X105: |
D106: qualifying category A common shares | H106: 24000 | L106: | | O106: deduction for excess B & C capital: | S106: 2923 | T106: (see full solution in external PDF) | X106: |
D107: contributed surplus | H107: 3000 | L107: | | O107: MCT net capital available | S107: =S104-S105-S106 -> 54677 | X107: |
D108: Retained Earnings | H108: 5500 | L108: | | X108: |
D109: reserves | H109: 5000 | L109: | | M109: (4.5 points) | N109: b. | O109: capital required for insurance risk: | S109: =SUM(S110:S113) -> 36457 | T109: (sum the components) | X109: |
D110: AOCI | H110: 6500 | L110: | | O110: component: unpaid claims | S110: 15670 | T110: (see full solution in external PDF) | X110: |
D111: qualifying category B instruments | H111: 16500 | L111: | | O111: component: premium liabilities | S111: 13887 | T111: (see full solution in external PDF) | X111: |
D112: qualifying category C instruments | H112: 6500 | L112: | | O112: component: unregistered reinsurance | S112: =I152 -> 3900 | T112: (given) | X112: |
D113: non-controlling interests | H113: 600 | L113: | | O113: component: catastrophes | S113: =I153 -> 3000 | T113: (given) | X113: |
L114: | | X114: |
C115: You'll also need some information on reinsurance ceded to unregistered reinsurers: | L115: | | O115: capital required for market risk: | S115: =SUM(S116:S119) -> 9000 | T115: (sum the components) [Hint: Mr. IFER] | X115: |
L116: | | O116: component: interest rate risk | S116: =H155 -> 3500 | T116: (given) | X116: |
D117: UEP ceded: | E117: ($) UnEarned Premiums ceded to assuming reinsurer | L117: | | O117: component: foreign exchange | S117: =H156 -> 500 | T117: (given) | X117: |
D118: O/S Recov: | E118: ($) OutStanding losses Recoverable from assuming reinsurer | L118: | | O118: component: equity | S118: =H157 -> 4000 | T118: (given) | X118: |
D119: Reins Recv: | E119: ($) Reinsurance Receivable | L119: | | O119: component: real estate | S119: =H158 -> 1000 | T119: (given) | X119: |
D120: Reins Pay: | E120: ($) Reinsurance Payable | L120: | | X120: |
D121: NOD: | E121: ($) Non-Owned Deposits (RSA + Other) & includes FUNDS to secure pmt | L121: | | O121: capital required for credit risk: | S121: =H159 -> 4530 | T121: (given) | X121: |
E122: from assuming insurer (the FUNDS inclusion is new for 2018) | L122: | | X122: |
D123: LOC: | E123: ($) Letters Of Credit | L123: | | O123: capital required for operational risk: | S123: 11027 | T123: (see full solution in external PDF) | X123: |
L124: | | X124: |
D125: UEP | E125: O/S | F125: Reins | G125: Reins | L125: | | O125: MCT minimum capital required: | S125: 37206 | X125: |
D126: ceded | E126: Recov | F126: Recv | G126: Pay | H126: NOD | I126: LOC | L126: | | O126: diversification credit: | S126: =Y126 -> 0 | X126: |
D127: 18000 | E127: 8000 | F127: 3000 | G127: 6000 | H127: 8000 | I127: 5000 | L127: | | X127: |
L128: | | M128: (0.5 points) | N128: c. | O128: MCT ratio: | Q128: = CapAvail / minCapReq | X128: |
B129: b. | C129: (4.5 points) | L129: | | Q129: = 54,677 / 37,206 | X129: |
L130: | | Q130: = 147% | X130: |
C131: Given the following information, calculate the MCT minimum capital required. | L131: | | X131: |
L132: | | O132: This is below the supervisery target of 150%. (They would now be under increased | X132: |
D133: Line of | E133: net | H133: * net unpaid is discounted but excludes | L133: | | O133: scrutiny by OSFI.) | X133: |
D134: Business | E134: unpaid * | F134: margin | H134: PfADs | L134: | | X134: |
D135: Line 1 | E135: 45000 | F135: 0.16 | L135: | | X135: |
D136: Line 2 | E136: 77000 | F136: 0.11 | L136: | | X136: |
L137: | | X137: |
D138: Line of | E138: prem | G138: DWP | H138: AWP | I138: CWP | L138: | | X138: |
D139: Business | E139: liabs | F139: margin | G139: (12 mths) | H139: (12 mths) | I139: (12 mths) | L139: | | X139: |
D140: Line 1 | E140: 20000 | F140: 0.19 | G140: 80000 | H140: 20000 | I140: 9000 | L140: | | X140: |
D141: Line 2 | E141: 58000 | F141: 0.15 | G141: 121000 | H141: 23000 | I141: 29000 | L141: | | X141: |
L142: | | X142: |
C143: Question continues on next page… | L143: | | X143: |
L144: | | X144: |
A145: ---- | B145: ---- | C145: ---- | D145: ---- | E145: ---- | F145: ---- | G145: ---- | H145: ---- | I145: ---- | J145: ---- | K145: ---- | L145: | | M145: ---- | N145: ---- | O145: ---- | P145: ---- | Q145: ---- | R145: ---- | S145: ---- | T145: ---- | U145: ---- | V145: ---- | W145: ---- | X145: |
L146: | | X146: |
A147: Exam: | B147: BattleActs 6C Practice Exam 1 (2018.Fall) | L147: | | X147: |
A148: Question: | B148: 13 (continued) | L148: | | X148: |
L149: | | X149: |
C150: These 2 amounts relate to components of insurance risk: | L150: | | X150: |
L151: | | X151: |
D152: capital required for unregistered reinsurers: | I152: 3900 | L152: | | X152: |
D153: capital required for catastrophes: | I153: 3000 | L153: | | X153: |
L154: | | X154: |
C155: The capital required for interest rate risk is: | H155: 3500 | L155: | | X155: |
C156: The capital required for foreign exchange risk is: | H156: 500 | L156: | | X156: |
C157: The capital required for equity risk is: | H157: 4000 | L157: | | X157: |
C158: The capital required for real estate risk is: | H158: 1000 | L158: | | X158: |
C159: The capital required for credit risk is: | H159: 4530 | L159: | | X159: |
L160: | | X160: |
C161: Here is some more information that you'll need: | L161: | | X161: |
L162: | | X162: |
D163: AWP(ig): | E163: ($) AWP (last 12 mths) from intra-group pooling | L163: | | X163: |
D164: CWP(ig): | E164: ($) CWP (last 12 mths) from intra-group pooling | L164: | | X164: |
L165: | | X165: |
D166: DWP | E166: AWP | F166: CWP | G166: growth | H166: AWP(ig): | I166: CWP(ig): | L166: | | X166: |
D167: 201000 | E167: 43000 | F167: 38000 | G167: 0.21 | H167: 0 | I167: 0 | L167: | | X167: |
L168: | | X168: |
G169: risk factor | L169: | | X169: |
D170: DWP over last 12 months | G170: 0.025 | L170: | | X170: |
D171: AWP over last 12 months | G171: 0.0175 | L171: | | X171: |
D172: CWP over last 12 months | G172: 0.025 | L172: | | X172: |
D173: AWP(ig) over last 12 months | G173: 0.0075 | L173: | | X173: |
D174: CWP(ig) over last 12 months | G174: 0.0075 | L174: | | X174: |
D175: premium growth above 20% | G175: 0.025 | L175: | | X175: |
D176: capital factor * | G176: 0.085 | L176: | | X176: |
L177: | | X177: |
D178: * capital factor applies to total capital required BEFORE operational risk margin | L178: | | X178: |
D179: and diversification credit. | L179: | | X179: |
L180: | | X180: |
B181: c. | C181: (0.5 point) | L181: | | X181: |
L182: | | X182: |
C183: Calculate the MCT ratio and state whether it is above or below the supervisery target. | L183: | | X183: |
L184: | | X184: |
L185: | | X185: |
L186: | | X186: |
L187: | | X187: |
L188: | | X188: |
L189: | | X189: |
L190: | | X190: |
L191: | | X191: |
L192: | | X192: |
A193: ---- | B193: ---- | C193: ---- | D193: ---- | E193: ---- | F193: ---- | G193: ---- | H193: ---- | I193: ---- | J193: ---- | K193: ---- | L193: | | M193: ---- | N193: ---- | O193: ---- | P193: ---- | Q193: ---- | R193: ---- | S193: ---- | T193: ---- | U193: ---- | V193: ---- | W193: ---- | X193: |

Sheet 14
A1: Exam: | B1: BattleActs 6C Practice Exam 2 (2019.Fall) | L1: | | M1: Exam: | N1: BattleActs 6C Practice Exam 2 (2019.Fall) - [ANSWER SHEET] | Z1: |
A2: Question: | B2: 14 | L2: | | M2: Answer: | N2: =B2 -> 14 | Z2: |
A3: Points: | B3: 2 | C3: points | L3: | | M3: Points: | N3: =B3 -> 2 | O3: points | Z3: |
L4: | | Z4: |
B5: a. | C5: (1.25 points) | L5: | | M5: Source: | N5: CCIR.ARinstr | Z5: |
L6: | | Z6: |
C7: Calculate the investment income attributable to insurance operations. | L7: | | M7: (1.25 points) | N7: a. | O7: investment income | Q7: = | R7: (yield rate) | T7: x | U7: (money lying around) | Z7: |
L8: | | Q8: = | R8: 0.07 | T8: x | U8: 19100 | Z8: |
C9: investment yield: | E9: 0.07 | L9: | | Q9: = | R9: 1337 | S9: <== final answer to part (a) | Z9: |
L10: | | Z10: |
D11: APV | E11: APV | F11: paid in | L11: | | Z11: |
C12: AY | D12: yr-end 14 | E12: yr-end 15 | F12: CY 2015 | L12: | | O12: money lying around | Q12: = | R12: + items | S12: - | T12: - items | Z12: |
C13: 2012 | D13: 3000 | E13: 2000 | F13: 800 | L13: | | Q13: = | R13: 19100 | Z13: |
C14: =C13+1 -> 2013 | D14: 4000 | E14: 3000 | F14: 900 | L14: | | Z14: |
C15: =C14+1 -> 2014 | D15: 4500 | E15: 3500 | F15: 1000 | L15: | | P15: + items | Q15: average | S15: - items | W15: average | Z15: |
C16: =C15+1 -> 2015 | E16: 4500 | F16: 4000 | L16: | | P16: UCAE | Q16: 12250 | S16: DPAE | W16: 0 | Z16: |
L17: | | P17: UPR | Q17: 5500 | S17: receivables: installment premiums | W17: 0 | Z17: |
L18: | | P18: PDR | Q18: 500 | S18: receivables: PH + agents & brokers | W18: 200 | Z18: |
D19: yr-end 14 | E19: yr-end 15 | L19: | | P19: UEcomm | Q19: 1050 | Z19: |
C20: UPR | D20: 5000 | E20: 6000 | F20: <== unearned premium reserve | L20: | | P20: total | Q20: 19300 | S20: total | W20: 200 | Z20: |
C21: PDR | D21: 600 | E21: 400 | F21: <== premium deficiency reserve | L21: | | Z21: |
C22: UEcomm | D22: 1200 | E22: 900 | F22: <== unearned commissions | L22: | | O22: The UCAE average of | Q22: 12250 | R22: is calculated as the average of (CY 2015) & (CY 2014) as follows: | Z22: |
C23: PH Recv | D23: 300 | E23: 100 | F23: <== policy holder receivables (agents & brokers) | L23: | | Z23: |
L24: | | P24: CY 2014: | Q24: SUM(APV at Dec14) over all accident years | Z24: |
L25: | | Q25: = | R25: 3000 | S25: + | T25: 4000 | U25: + | V25: 4500 | Z25: |
B26: b. | C26: (0.75 points) | L26: | | Q26: = | R26: 11500 | Z26: |
L27: | | Z27: |
C28: Calculate the excess (deficiency) amount for CY 2015 (not the ratio). | L28: | | P28: CY 2015: | Q28: SUM(APV at Dec15) over all accident years | Z28: |
L29: | | Q29: = | R29: 2000 | S29: + | T29: 3000 | U29: + | V29: 3500 | W29: + | X29: 4500 | Z29: |
L30: | | Q30: = | R30: 13000 | Z30: |
L31: | | Z31: |
L32: | | P32: UCAE average | Q32: = | R32: average( | S32: 11500 | T32: , | U32: 13000 | V32: ) | Z32: |
L33: | | Q33: = | R33: 12250 | Z33: |
L34: | | Z34: |
L35: | | Z35: |
L36: | | Z36: |
L37: | | Z37: |
L38: | | Z38: |
L39: | | Z39: |
L40: | | Z40: |
L41: | | Z41: |
L42: | | Z42: |
L43: | | Z43: |
L44: | | Z44: |
L45: | | Z45: |
L46: | | Z46: |
L47: | | Z47: |
A48: ---- | B48: ---- | C48: ---- | D48: ---- | E48: ---- | F48: ---- | G48: ---- | H48: ---- | I48: ---- | J48: ---- | K48: ---- | L48: | | M48: ---- | N48: ---- | O48: ---- | P48: ---- | Q48: ---- | R48: ---- | S48: ---- | T48: ---- | U48: ---- | V48: ---- | W48: ---- | X48: ---- | Y48: ---- | Z48: |
L49: | | Z49: |
L50: | | M50: (0.75 points) | N50: b. | O50: We must apply the following formula for each AY for CY 15 and then SUM | Z50: |
L51: | | Z51: |
L52: | | P52: excess amount | R52: = | S52: [ U(beg) - U(end) - Pd(All) + ii ] | Z52: |
L53: | | Z53: |
L54: | | O54: Let's first reorganize the given information into triangles to make it (hopefully) easier to understand. | Z54: |
L55: | | Z55: |
L56: | | O56: paid loss during CY | U56: discounted UCAE (including PfAD) at END of CY | Z56: |
L57: | | O57: AY / CY | P57: CY 12 | Q57: CY 13 | R57: CY 14 | S57: CY 15 | U57: AY / CY | V57: CY 12 | W57: CY 13 | X57: CY 14 | Y57: CY 15 | Z57: |
L58: | | O58: AY 12 | P58: 0 | Q58: 0 | R58: 0 | S58: 800 | U58: AY 12 | V58: 0 | W58: 0 | X58: 3000 | Y58: 2000 | Z58: |
L59: | | O59: AY 13 | Q59: 0 | R59: 0 | S59: 900 | U59: AY 13 | W59: 0 | X59: 4000 | Y59: 3000 | Z59: |
L60: | | O60: AY 14 | R60: 0 | S60: 1000 | U60: AY 14 | X60: 4500 | Y60: 3500 | Z60: |
L61: | | O61: AY 15 | S61: 4000 | U61: AY 15 | Y61: 4500 | Z61: |
L62: | | Z62: |
L63: | | O63: Let's calculate (excess amount)AY12 in detail, then the other AYs are similar: | Z63: |
L64: | | Z64: |
L65: | | P65: (excess amount)AY12 | R65: = | S65: 3000 | T65: - | U65: 2000 | V65: - | W65: 800 | X65: + | Y65: ii | Z65: |
L66: | | R66: = | S66: 3000 | T66: - | U66: 2000 | V66: - | W66: 800 | X66: + | Y66: 175 | Z66: |
L67: | | R67: = | S67: 375 | Z67: |
L68: | | O68: where ii = investment income | Z68: |
L69: | | P69: iiCY12 | R69: = | S69: 0.07 | T69: x | U69: average( | V69: 3000 | W69: , | X69: 2000 | Y69: ) | Z69: |
L70: | | R70: = | S70: 175 | Z70: |
L71: | | Z71: |
L72: | | Z72: |
L73: | | P73: = | Q73: 4000 | R73: - | S73: 3000 | T73: - | U73: 900 | V73: + | W73: 245 | X73: = | Y73: 345 | Z73: |
L74: | | P74: = | Q74: 4500 | R74: - | S74: 3500 | T74: - | U74: 1000 | V74: + | W74: 280 | X74: = | Y74: 280 | Z74: |
L75: | | P75: = | Q75: cannot be calculated for the most current AY / CY combination: set = 0 by defn | Y75: 0 | Z75: |
L76: | | U76: final answer to part (b) ==> | X76: total AY12, AY13, AY14, AY15 = | Y76: 1000 | Z76: |
L77: | | Z77: |
L78: | | Z78: |
L79: | | Z79: |
L80: | | Z80: |
L81: | | Z81: |
L82: | | Z82: |
L83: | | Z83: |
L84: | | Z84: |
L85: | | Z85: |
L86: | | Z86: |
L87: | | Z87: |
L88: | | Z88: |
L89: | | Z89: |
L90: | | Z90: |
L91: | | Z91: |
L92: | | Z92: |
L93: | | Z93: |
L94: | | Z94: |
A95: ---- | B95: ---- | C95: ---- | D95: ---- | E95: ---- | F95: ---- | G95: ---- | H95: ---- | I95: ---- | J95: ---- | K95: ---- | L95: | | M95: ---- | N95: ---- | O95: ---- | P95: ---- | Q95: ---- | R95: ---- | S95: ---- | T95: ---- | U95: ---- | V95: ---- | W95: ---- | X95: ---- | Y95: ---- | Z95: |

Sheet 15
A1: Exam: | B1: BattleActs 6C Practice Exam 2 (2019.Fall) | L1: | | M1: Exam: | N1: BattleActs 6C Practice Exam 2 (2019.Fall) - [ANSWER SHEET] | AA1: |
A2: Question: | B2: 15 | L2: | | M2: Answer: | N2: =B2 -> 15 | AA2: |
A3: Points: | B3: 3.25 | C3: points | L3: | | M3: Points: | N3: =B3 -> 3.25 | O3: points | AA3: |
L4: | | AA4: |
B5: Suppose you're given the following information | L5: | | M5: Source: | N5: MSA Ratios | AA5: |
L6: | | AA6: |
C7: BALANCE SHEET | L7: | | M7: (0.75 points) | N7: a. | O7: InvYld | P7: = | Q7: 2 | R7: x | S7: NII | T7: / ( | U7: InvAss0 | V7: + | W7: InvAss1 | X7: - | Y7: NII | Z7: ) | AA7: |
I8: current (1) | J8: prior (0) | L8: | | P8: = | Q8: 2 | R8: x | S8: 7500 | T8: / ( | U8: 96600 | V8: + | W8: 90200 | X8: - | Y8: 7500 | Z8: ) | AA8: |
C9: Cash | I9: 7800 | J9: 5800 | L9: | | O9: InvYld | P9: = | Q9: 0.08365867262 | R9: <== final answer to (i) - use judgment to assess financial health (Looks pretty good!) | AA9: |
C10: Bonds and Debentures | I10: 58300 | J10: 63500 | L10: | | AA10: |
C11: Common Shares | I11: 4500 | J11: 3400 | L11: | | P11: NII | Q11: = | R11: InvInc | S11: + | T11: Realized Gains/Losses | W11: - | X11: InvExps | AA11: |
C12: Real Estate | I12: 19600 | J12: 23900 | L12: | | P12: NII | Q12: = | R12: 10000 | S12: + | T12: -1700 | U12: - | V12: 800 | AA12: |
C13: Agents and Brokers Receivables | I13: 700 | J13: 1200 | L13: | | Q13: = | R13: 7500 | AA13: |
C14: Unearned Premiums Recoverable | I14: 17100 | J14: 16900 | L14: | | AA14: |
C15: Unpaid Claims and Adjustment Expenses Recoverable | I15: ? | J15: ? | L15: | | P15: InvAss | Q15: = | R15: cash | S15: + | T15: bonds & debentures | V15: + | W15: commons shares | Y15: + | Z15: real estate | AA15: |
C16: Total Assets | I16: 181100 | J16: 163100 | L16: | | P16: InvAss0 | Q16: = | R16: 5800 | S16: + | T16: 63500 | U16: + | V16: 3400 | W16: + | X16: 23900 | Y16: = | Z16: 96600 | AA16: |
C17: Gross Unpaid Claims and Adjustment Expenses | I17: 63400 | J17: 56600 | L17: | | P17: InvAss1 | Q17: = | R17: 7800 | S17: + | T17: 58300 | U17: + | V17: 4500 | W17: + | X17: 19600 | Y17: = | Z17: 90200 | AA17: |
C18: Equity | I18: 50300 | J18: 42200 | L18: | | AA18: |
L19: | | AA19: |
C20: INCOME STATEMENT | L20: | | AA20: |
I21: current (1) | J21: prior (0) | L21: | | M21: (0.75 points) | O21: ROE | P21: = | Q21: ( | R21: NI.preTax | S21: - | T21: Tot. Tax | U21: ) | V21: / | W21: equity | AA21: |
C22: Net Premiums Written | I22: 69000 | J22: 79600 | L22: | | P22: = | Q22: ( | R22: 6200 | S22: - | T22: 4000 | U22: ) | V22: / | W22: 50300 | AA22: |
C23: Decrease in Net Unearned Premiums | I23: 1800 | J23: 1600 | L23: | | O23: ROE | P23: = | Q23: 0.04373757455 | R23: <== final answer to (ii) - compare to acceptable minimum of 5.4% | X23: BAD | AA23: |
C24: Net Claims and Adjustment Expenses | I24: 60400 | J24: 48700 | L24: | | AA24: |
C25: Total Acquisition Expenses | I25: 7200 | J25: 8100 | L25: | | P25: NI.pretax | Q25: = | R25: NEP | S25: - | T25: net.CAE | U25: - | V25: TotAcq | W25: - | X25: GenExps | Y25: + | Z25: NII | AA25: |
C26: General Expenses | I26: 4500 | J26: 5100 | L26: | | Q26: = | R26: 70800 | S26: - | T26: 60400 | U26: - | V26: 7200 | W26: - | X26: 4500 | Y26: + | Z26: 7500 | AA26: |
C27: Investment Income | I27: 10000 | J27: 6100 | L27: | | Q27: = | R27: 6200 | AA27: |
C28: Realized Gains | I28: -1700 | J28: 800 | L28: | | AA28: |
C29: Investment Expenses | I29: 800 | J29: 600 | L29: | | P29: NEP | Q29: = | R29: NWP | S29: - | T29: change(UEP) | AA29: |
C30: Income Taxes – Total | I30: 4000 | J30: 4100 | L30: | | Q30: = | R30: NWP | S30: - | T30: [ | U30: current(UEP) | W30: - | X30: prior(UEP) | Y30: ] | AA30: |
L31: | | Q31: = | R31: 69000 | S31: - | T31: [ | U31: -1800 | V31: ] | AA31: |
C32: ALSO: | L32: | | Q32: = | R32: 70800 | AA32: |
L33: | | AA33: |
C34: Net Leverage Ratio (at end of current year): | I34: 2.2 | J34: n/a | L34: | | AA34: |
L35: | | AA35: |
B36: a. | C36: (2.75 points) | L36: | | M36: (0.75 points) | O36: ROA | P36: = | Q36: ( | R36: NI.preTax | S36: - | T36: Tot. Tax | U36: ) | V36: / | W36: ( 2-yr average of assets) | AA36: |
L37: | | P37: = | Q37: ( | R37: 6200 | S37: - | T37: 4000 | U37: ) | V37: / | W37: average ( | X37: 181100 | Y37: , | Z37: 163100 | AA37: |
C38: Calculate these quantities and assess the financial health of the company. | L38: | | P38: = | Q38: 0.01278326554 | R38: <== final answer to (iii) - compare to acceptable minimum of 2.6% | X38: BAD | AA38: |
L39: | | AA39: |
C40: (i) | D40: InvYld (Investment Yield) | G40: (iii) | H40: ROA | L40: | | AA40: |
C41: (ii) | D41: ROE | G41: (iv) | H41: Net U/W Leverage Ratio | L41: | | AA41: |
L42: | | M42: (0.5 points) | O42: Net U/W Leverage Ratio | R42: = | S42: NWP | T42: / | U42: equity | AA42: |
B43: b. | C43: (0.5 point) | L43: | | R43: = | S43: 69000 | T43: / | U43: 50300 | AA43: |
L44: | | R44: = | S44: 1.371769384 | T44: <== final answer to (iv) - compare to acceptable MAXIMUM of 300% | AA44: |
C45: Calculate the unpaid claims and adjustment expenses recoverable at the end | L45: | | Z45: GOOD | AA45: |
C46: of the current year. | L46: | | AA46: |
L47: | | AA47: |
A48: ---- | B48: ---- | C48: ---- | D48: ---- | E48: ---- | F48: ---- | G48: ---- | H48: ---- | I48: ---- | J48: ---- | K48: ---- | L48: | | M48: -------- | N48: -------- | O48: -------- | P48: -------- | Q48: -------- | R48: -------- | S48: -------- | T48: -------- | U48: -------- | V48: -------- | W48: -------- | X48: -------- | Y48: -------- | Z48: -------- | AA48: |
L49: | | AA49: |
L50: | | M50: (1 point) | O50: Calculation of UCAE: | Q50: We're given the value for Net Leverage Ratio, so let's write down the formula and see where it leads… | AA50: |
L51: | | AA51: |
L52: | | P52: Net Leverage Ratio | Q52: = | R52: ( | S52: NWP | T52: + | U52: Net.Liabs | V52: ) | W52: / | X52: equity | AA52: |
L53: | | P53: 2.2 | Q53: = | R53: ( | S53: 69000 | T53: + | U53: Net.Liabs | V53: ) | W53: / | X53: 50300 | AA53: |
L54: | | O54: ==> | P54: Net.Labs | Q54: = | R54: 41660 | S54: <== Net.Liabs was the only unknown so I decided to solve for it | AA54: |
L55: | | AA55: |
L56: | | O56: Ok, but where do we go from here? You need to relate the unknown, UCAE recoverable, to quantities we have. To do this, it helps to | AA56: |
L57: | | O57: recall that "Net" means "Net of reinsurance". Then we can relate "Net" and "Total" liabilities with this formula… | AA57: |
L58: | | AA58: |
L59: | | P59: Net.Liabs | Q59: = | R59: Tot.Liabs | S59: - | T59: UCAE recoverable | V59: - | W59: UEP recoverable | AA59: |
L60: | | P60: 41660 | Q60: = | R60: 130800 | S60: - | T60: UCAE recoverable | V60: - | W60: 17100 | AA60: |
L61: | | P61: UCAE recoverable | Q61: = | R61: 72040 | S61: <== final answer to UCAE recoverable | AA61: |
L62: | | AA62: |
L63: | | O63: The term "Tot.Liabs" used in the above calculation was calculated as follows: | AA63: |
L64: | | AA64: |
L65: | | P65: Tot.Liabs | Q65: = | R65: Tot.Assets | S65: - | T65: equity | U65: = | V65: 181100 | W65: - | X65: 50300 | Y65: = | Z65: 130800 | AA65: |
L66: | | AA66: |
L67: | | AA67: |
L68: |
L69: |
L70: |
L71: |
L72: |
L73: |
L74: |
L75: |
L76: |
L77: |
L78: |
L79: |
L80: |
L81: |
L82: |
L83: |
L84: |
L85: |
L86: |
L87: |
L88: |
L89: |
L90: |
L91: |
L92: |
L93: |
L94: |
A95: ---- | B95: ---- | C95: ---- | D95: ---- | E95: ---- | F95: ---- | G95: ---- | H95: ---- | I95: ---- | J95: ---- | K95: ---- | L95: | | M95: ---- | N95: ---- | O95: ---- | P95: ---- | Q95: ---- | R95: ---- | S95: ---- | T95: ---- | U95: ---- | V95: ---- | W95: ---- | X95: |

Sheet 16
A1: Exam: | B1: BattleActs 6C Practice Exam 2 (2019.Fall) | L1: | | M1: Exam: | N1: BattleActs 6C Practice Exam 2 (2019.Fall) - [ANSWER SHEET] | X1: |
A2: Question: | B2: 16 | L2: | | M2: Answer: | N2: =B2 -> 16 | X2: |
A3: Points: | B3: 2.25 | C3: points | L3: | | M3: Points: | N3: =B3 -> 2.25 | O3: points | X3: |
L4: | | X4: |
B5: a. | C5: (2.25 points) | L5: | | M5: Source: | N5: CCIR.ARinstr | X5: |
L6: | | X6: |
C7: Given the following information, calculate the TOTAL NET COMMISSIONS. Note that I've | L7: | | M7: (2.25 points) | N7: a. | O7: The key is knowing the layout of the exhibit and the formulas to complete the columns. It is | X7: |
C8: used abbreviations in the table so the table would fit in the width of the page. | L8: | | O8: exactly like 2016.Spring #18. I found the answer in the examiner's report very confusing. | X8: |
L9: | | O9: It's much easier if you put everything into a table like in Exhibit 80.10. You can see the layout | X9: |
C10: DFcomm: | D10: Deferred Commissions | H10: @ start: | I10: at start of year | L10: | | O10: of this net commissions exhibit in the sample quarterly statement. | X10: |
C11: UEcomm: | D11: Unearned Commissions | H11: @ end: | I11: at end of year | L11: | | X11: |
L12: | | O12: There is a summary box to this exhibit that isn't given in the statement of the problem. You | X12: |
C13: (02) | D13: (03) | E13: (04) | F13: (05) | G13: (06) | H13: (07) | I13: (08) | J13: (09) | K13: (10) | L13: | | O13: have to memorize this. The only number you don't have is the commission expense. | X13: |
C14: DFcomm | D14: UEcomm | E14: commissions in respect of WP | I14: DFcomm | J14: UEcomm | K14: Net | L14: | | X14: |
B15: LOB | C15: @ start | D15: @ start | E15: Direct | F15: Assm'd | G15: Ceded | H15: Net | I15: @ end | J15: @ end | K15: Comm | L15: | | O15: summary of commissions | X15: |
B16: 1 | C16: 1200 | E16: 1100 | F16: 150 | G16: 500 | I16: 2200 | L16: | | O16: gross | X16: |
B17: 2 | C17: 1700 | E17: 1200 | G17: 300 | H17: 1000 | I17: 1700 | L17: | | O17: commission expense | S17: =O46+Q46+R46-U46 -> 1550 | T17: = (02) + (04) + (05) - (08) [use totals row] | X17: |
B18: Tot | C18: =SUM(C16:C17) -> 2900 | E18: =SUM(E16:E17) -> 2300 | G18: =SUM(G16:G17) -> 800 | I18: =SUM(I16:I17) -> 3900 | L18: | | O18: contingent commission | S18: =K20 -> 800 | T18: <-- given | X18: |
L19: | | O19: other non-deferrable commission | S19: =K22 -> 400 | T19: <-- given | X19: |
G20: gross contingent commissions | K20: 800 | L20: | | O20: total gross | S20: =SUM(S17:S19) -> 2750 | T20: = sum of gross commissions | X20: |
G21: ceded contingent commissions | K21: 200 | L21: | | O21: ceded | X21: |
G22: gross other non-deferrable commissions | K22: 400 | L22: | | O22: commission income | S22: =K24 -> 1400 | T22: <-- given | X22: |
G23: ceded other non-deferrable commissions | K23: 75 | L23: | | O23: contingent commission | S23: =K21 -> 200 | T23: <-- given | X23: |
G24: ceded commission income (LOB1 + LOB2) | K24: 1400 | L24: | | O24: other non-deferrable commission | S24: =K23 -> 75 | T24: <-- given | X24: |
L25: | | O25: total ceded | S25: =SUM(S22:S24) -> 1675 | T25: = sum of ceded commissions | X25: |
C26: Note: | L26: | | M26: final answer ----> | O26: TOTAL NET COMMISSIONS | S26: =S20-S25 -> 1075 | T26: = (total gross) - (total ceded) | X26: |
C27: ==> DEFERRED Commission refers to commissions paid for direct & assumed business | L27: | | X27: |
C28: ==> UNEARNED Commission refers to commission revenue from ceded business | L28: | | O28: So, we have to get the total for column (05). We need the corresponding value for LOB 2. | X28: |
L29: | | O29: This is easy. We just use the standard formula: | X29: |
L30: | | X30: |
L31: | | P31: Direct + Assumed - Ceded = Net | X31: |
L32: | | X32: |
L33: | | O33: Rearrange this as follows: | X33: |
L34: | | X34: |
L35: | | P35: Assumed = Net - Direct + Ceded | X35: |
L36: | | Q36: = 1,000 - 1,200 + 300 | X36: |
L37: | | Q37: = 100 | X37: | | Y37: =H17-E17+G17 -> 100
L38: | | X38: |
L39: | | O39: Substitute this into the table below and calculate the sum of column (05). C'est très facile! | X39: |
L40: | | X40: |
L41: | | O41: (02) | P41: (03) | Q41: (04) | R41: (05) | S41: (06) | T41: (07) | U41: (08) | V41: (09) | W41: (10) | X41: |
L42: | | O42: DFcomm | P42: UEcomm | Q42: commissions in respect of WP | U42: DFcomm | V42: UEcomm | W42: Net | X42: |
L43: | | N43: LOB | O43: @ start | P43: @ start | Q43: Direct | R43: Assm'd | S43: Ceded | T43: Net | U43: @ end | V43: @ start | W43: Comm | X43: |
L44: | | N44: 1 | O44: =C16 -> 1200 | Q44: =E16 -> 1100 | R44: =F16 -> 150 | S44: =G16 -> 500 | U44: =I16 -> 2200 | X44: |
L45: | | N45: 2 | O45: =C17 -> 1700 | Q45: 1200 | R45: =T45+S45-Q45 -> 100 | S45: 300 | T45: =H17 -> 1000 | U45: 1700 | X45: |
L46: | | N46: Tot | O46: =SUM(O44:O45) -> 2900 | Q46: =SUM(Q44:Q45) -> 2300 | R46: =SUM(R44:R45) -> 250 | S46: =SUM(S44:S45) -> 800 | U46: =SUM(U44:U45) -> 3900 | X46: |
L47: | | X47: |
A48: ---- | B48: ---- | C48: ---- | D48: ---- | E48: ---- | F48: ---- | G48: ---- | H48: ---- | I48: ---- | J48: ---- | K48: ---- | L48: | | O48: Now we calculate the commission expense using the green highlighted values: | X48: |
L49: | | X49: |
A50: original | C50: (02) | D50: (03) | E50: (04) | F50: (05) | G50: (06) | H50: (07) | I50: (08) | J50: (09) | K50: (10) | L50: | | Q50: commission expense | R50: = (02) + (04) + (05) - (08) | X50: |
C51: DFcomm | D51: UEcomm | E51: commissions in respect of WP | I51: DFcomm | J51: UEcomm | K51: Net | L51: | | R51: = 2.900 + 2,300 + 250 - 3,900 | X51: |
B52: LOB | C52: @ start | D52: @ start | E52: Direct | F52: Assm'd | G52: Ceded | H52: Net | I52: @ end | J52: @ end | K52: Comm | L52: | | R52: = 1,550 | X52: | | Y52: =O46+Q46+R46-U46 -> 1550
B53: 1 | C53: 1400 | E53: 1000 | F53: 100 | G53: 400 | I53: 1600 | L53: | | M53: ---- | N53: ---- | O53: ---- | P53: ---- | Q53: ---- | R53: ---- | S53: ---- | T53: ---- | U53: ---- | V53: ---- | W53: ---- | X53: |
B54: 2 | C54: 1600 | E54: 1500 | G54: 400 | H54: 1200 | I54: 1900 | L54: | | X54: |
B55: Tot | C55: =SUM(C53:C54) -> 3000 | E55: =SUM(E53:E54) -> 2500 | G55: =SUM(G53:G54) -> 800 | I55: =SUM(I53:I54) -> 3500 | L55: | | X55: |
L56: | | X56: |
G57: gross contingent commissions | K57: 600 | L57: | | X57: |
G58: ceded contingent commissions | K58: 150 | L58: | | X58: |
G59: gross other non-deferrable commissions | K59: 300 | L59: | | X59: |
G60: ceded other non-deferrable commissions | K60: 50 | L60: | | X60: |
G61: ceded commission income (LOB1 + LOB2) | K61: 1200 | L61: | | X61: |
L62: | | X62: |
L63: | | X63: |
A64: new | C64: (02) | D64: (03) | E64: (04) | F64: (05) | G64: (06) | H64: (07) | I64: (08) | J64: (09) | K64: (10) | L64: | | X64: |
C65: DFcomm | D65: UEcomm | E65: commissions in respect of WP | I65: DFcomm | J65: UEcomm | K65: Net | L65: |
B66: LOB | C66: @ start | D66: @ start | E66: Direct | F66: Assm'd | G66: Ceded | H66: Net | I66: @ end | J66: @ end | K66: Comm | L66: |
B67: 1 | C67: 1200 | E67: 1100 | F67: 150 | G67: 500 | I67: 2200 | L67: |
B68: 2 | C68: 1700 | E68: 1200 | G68: 300 | H68: 1000 | I68: 1700 | L68: |
B69: Tot | C69: =SUM(C67:C68) -> 2900 | E69: =SUM(E67:E68) -> 2300 | G69: =SUM(G67:G68) -> 800 | I69: =SUM(I67:I68) -> 3900 | L69: |
L70: |
G71: gross contingent commissions | K71: 800 | L71: |
G72: ceded contingent commissions | K72: 200 | L72: |
G73: gross other non-deferrable commissions | K73: 400 | L73: |
G74: ceded other non-deferrable commissions | K74: 75 | L74: |
G75: ceded commission income (LOB1 + LOB2) | K75: 1400 | L75: |
L76: |
L77: |
L78: |
L79: |
L80: |
L81: |
L82: |
L83: |
L84: |
L85: |
L86: |
L87: |
L88: |
L89: |
L90: |
L91: |
L92: |
L93: |
L94: |
A95: ---- | B95: ---- | C95: ---- | D95: ---- | E95: ---- | F95: ---- | G95: ---- | H95: ---- | I95: ---- | J95: ---- | K95: ---- | L95: | | M95: ---- | N95: ---- | O95: ---- | P95: ---- | Q95: ---- | R95: ---- | S95: ---- | T95: ---- | U95: ---- | V95: ---- | W95: ---- | X95: |

Sheet 17
A1: Exam: | B1: BattleActs 6C Practice Exam 2 (2019.Fall) | L1: | | M1: Exam: | N1: BattleActs 6C Practice Exam 2 (2019.Fall) - [ANSWER SHEET] | X1: |
A2: Question: | B2: 17 | L2: | | M2: Answer: | N2: =B2 -> 17 | X2: |
A3: Points: | B3: 2.5 | C3: points | L3: | | M3: Points: | N3: =B3 -> 2.5 | O3: points | X3: |
L4: | | X4: |
B5: a. | C5: (1.25 points) | L5: | | M5: Source: | N5: OSFI.Eqk | X5: |
L6: | | X6: |
C7: Calculate the earthquake reserve using the model method with phase-in. (EPR is | L7: | | M7: (1 point) | N7: a. | O7: ERX_1 (Earthquake Risk Exposure) without phase-in | X7: |
C8: the earthquake premium reserve.) | L8: | | O8: = ( (East Canada PML500)^1.5 + (West Canada PML500)^1.5 ) ^ (1/1.5) | X8: |
L9: | | O9: = (60,000^1.5 + 240,000^1.5) ^ 1/1.5 | X9: |
C10: Year | D10: 2020 | L10: | | O10: = 259,605 | X10: |
C11: deductible | D11: 20000 | L11: | | O11: ERX_2 (Earthquake Risk Exposure) with phase-in | X11: |
L12: | | O12: = ERX1 x (year - 2014)/8 + max( [East Can PML420], [West Can PML420] ) x (2022 - year)/8 | X12: |
C13: EastCan.PML.500 | E13: 60000 | G13: EastCan.PML.420 | I13: 30000 | L13: | | O13: = 259,605 x (6/8) + 120,000 x (2/8) | X13: |
C14: WestCan.PML.500 | E14: 240000 | G14: WestCan.PML.420 | I14: 120000 | L14: | | O14: = 224,704 | X14: |
L15: | | X15: |
C16: EPR (part of Fin. Res.) | E16: 29600 | G16: EastCan.PTIV | I16: 46800 | L16: | | O16: ERC (Earthquake Reserve Component) | X16: |
C17: Financial Resources | E17: 55000 | G17: WestCan.PTIV | I17: 196800 | L17: | | O17: = ERX_2 - (Financial Resources) | X17: |
L18: | | O18: = 224,704 - 55,000 | X18: |
B19: b. | C19: (0.75 points) | L19: | | O19: = 169,704 | X19: |
L20: | | X20: |
C21: Identify and briefly describe 3 principles of earthquake risk management. | L21: | | O21: ER (Earthquake Reserve) | X21: |
L22: | | O22: = (ERC + EPR) x 1.25 | X22: |
B23: c. | C23: (0.5 points) | L23: | | O23: = (169,704 + 29,600) x 1.25 | X23: |
L24: | | O24: = 249,130 | Q24: <== final answer | X24: |
C25: Identify and briefly describe 2 sound earthquake modeling practices. | L25: | | X25: |
L26: | | M26: (0.5 points) | N26: b. | O26: Any 3 of: | X26: |
L27: | | O27: risk management | X27: |
L28: | | O28: - earthquake exposure risk management policies are subject to oversight by Board of | X28: |
L29: | | O29: Directors and implemented by Senior Management | X29: |
L30: | | O30: data management | X30: |
L31: | | O31: - data required is MORE than for traditional ratemaking | X31: |
L32: | | O32: - must address data Integrity, Verification, Limitations (IVL) | X32: |
L33: | | O33: models | X33: |
L34: | | O34: - understand (assumptions, methods, limitations) of earthquake models | X34: |
L35: | | O35: PML (Probable Maximum Loss) | X35: |
L36: | | O36: - PML = Total Expected Ultimate Cost | X36: |
L37: | | O37: - includes considerations for data quality, non-modeled exposure, model uncertainty | X37: |
L38: | | O38: multi-region exposure | X38: |
L39: | | O39: financial resources & contingency plan | X39: |
L40: | | O40: - Financial Resources: quantification of how financial resources cover PML | X40: |
L41: | | O41: - Contingency Plan: how to continue efficient business operations after disaster | X41: |
L42: | | X42: |
L43: | | M43: (0.75 point) | N43: c. | O43: Any 2 of: | P43: [Hint: DAQKD-UP] | X43: |
L44: | | O44: Docs: | Q44: - document use of model within risk management program | X44: |
L45: | | O45: Alternative: | Q45: - explain why a particular model is used versus alternatives | X45: |
L46: | | O46: Qualified: | Q46: - qualified staff needed to run in-house models regularly | X46: |
L47: | | O47: Knowledge: | Q47: - AML (require KNOWLEDGE of Assumptions, Methods, Limits of Model) | X47: |
L48: | | O48: Data: | Q48: - must show that GRANULARITY & QUALITY of data is appropriate | X48: |
L49: | | O49: Uncertainty: | Q49: - understand how uncertainty affects: (capital adequacy, reinsurance) | X49: |
L50: | | O50: PML: | Q50: - if PML1 <> PML2: explain (differences, subsequent model adjustments) | X50: |
L51: | | X51: |
L52: | | X52: |
A53: ---- | B53: ---- | C53: ---- | D53: ---- | E53: ---- | F53: ---- | G53: ---- | H53: ---- | I53: ---- | J53: ---- | K53: ---- | L53: | | M53: ---- | N53: ---- | O53: ---- | P53: ---- | Q53: ---- | R53: ---- | S53: ---- | T53: ---- | U53: ---- | V53: ---- | W53: ---- | X53: |
L54: | | X54: |
L55: | | X55: |
L56: | | X56: |
L57: | | X57: |
L58: | | X58: |
L59: | | X59: |
L60: | | X60: |
L61: | | X61: |
L62: | | X62: |
L63: | | X63: |
L64: | | X64: |
L65: | | X65: |
L66: | | X66: |
L67: | | X67: |
L68: | | X68: |
L69: | | X69: |
L70: | | X70: |
L71: | | X71: |
L72: | | X72: |
L73: | | X73: |
L74: | | X74: |
L75: | | X75: |
L76: | | X76: |
L77: | | X77: |
L78: | | X78: |
L79: | | X79: |
L80: | | X80: |
L81: | | X81: |
L82: | | X82: |
L83: | | X83: |
L84: | | X84: |
L85: | | X85: |
L86: | | X86: |
L87: | | X87: |
L88: | | X88: |
L89: | | X89: |
L90: | | X90: |
L91: | | X91: |
L92: | | X92: |
L93: | | X93: |
L94: | | X94: |
A95: ---- | B95: ---- | C95: ---- | D95: ---- | E95: ---- | F95: ---- | G95: ---- | H95: ---- | I95: ---- | J95: ---- | K95: ---- | L95: | | M95: ---- | N95: ---- | O95: ---- | P95: ---- | Q95: ---- | R95: ---- | S95: ---- | T95: ---- | U95: ---- | V95: ---- | W95: ---- | X95: |

Sheet 18
A1: Exam: | B1: BattleActs 6C Practice Exam 2 (2019.Fall) | L1: | | M1: Exam: | N1: BattleActs 6C Practice Exam 2 (2019.Fall) - [ANSWER SHEET] | X1: |
A2: Question: | B2: 18 | L2: | | M2: Answer: | N2: =B2 -> 18 | X2: |
A3: Points: | B3: 1.5 | C3: points | L3: | | M3: Points: | N3: =B3 -> 1.5 | O3: points | X3: |
L4: | | X4: |
B5: For each of the following scenarios, evaluate whether risk transfer has occurred and briefly | L5: | | M5: Source: | N5: Reinsurance | X5: |
B6: explain your answer. Your explanation may be either qualitative or quantitative as appropriate. | L6: | | X6: |
L7: | | M7: (0.75 points) | N7: a. | O7: transfer of risk: | Q7: - yes | X7: |
B8: a. | C8: (0.75 points) | L8: | | O8: type of method: | Q8: - qualitative | X8: |
L9: | | O9: method: | Q9: - apply the 'substantially all' rule | X9: |
C10: A risk manager purchases an annual 90% quota-share policy for $1,500,000. The portfolio | L10: | | Q10: - the insurer can suffer a loss, but it isn't large enough to pass the | X10: |
C11: contains 150 policies. The individual loss distribution is given in the table below: | L11: | | Q11: ERD test (see below) | X11: |
L12: | | Q12: - but since the quota-share percentage is 90%, we can apply the | X12: |
D13: probability of loss | F13: severity of loss | L13: | | Q13: 'substantially all' rule to conclude there is risk transfer | X13: |
D14: 0.93 | F14: 0 | L14: | | Q14: - this may be a situation where the risk manager wants to withdraw | X14: |
D15: 0.07 | F15: 1500 | L15: | | Q15: immediately from the market | X15: |
L16: | | X16: |
B17: b. | C17: (0.75 points) | L17: | | P17: this shows that the ERD test fails ==> | Q17: - ERD (Expected Reinsurer Deficit) | X17: |
L18: | | P18: (but it doesn't matter in this case) | Q18: - frequency of loss = 7% | X18: |
C19: A risk manager purchases a policy with the following terms: | L19: | | Q19: - severity of loss as a % of premium = 1,500/(1,500,000/150) = 15% | X19: |
L20: | | Q20: ==> then apply quota-share %: 15% x 90% = 13.5% | X20: |
D21: premium: | F21: 1000 | L21: | | Q21: - ERD = frequency x severity = 7% x 13.5% = 0.945% < 1% | X21: |
D22: probability of loss: | F22: 0.06 | L22: | | Q22: - this test requires ERD > 1% for transfer of risk | X22: |
D23: expected severity: | F23: 150 | G23: (net of premium) | L23: | | Q23: - by the ERD test there would be NO transfer of risk | X23: |
L24: | | X24: |
L25: | | M25: (0.75 points) | N25: b. | O25: transfer of risk: | Q25: - no | X25: |
L26: | | O26: type of method: | Q26: - quantitative | X26: |
L27: | | O27: method: | Q27: - ERD (Expected Reinsurer Deficit) | X27: |
L28: | | Q28: - frequency of loss = 6% | X28: |
L29: | | Q29: - severity of loss as a % of premium = 150/1000 = 15% | X29: |
L30: | | Q30: - ERD = frequency x severity = 6% x 15% = 0.9% < 1% | X30: |
L31: | | Q31: - this test requires ERD > 1% for transfer of risk | X31: |
L32: | | Q32: - therefore there is NO transfer of risk | X32: |
L33: | | X33: |
L34: | | X34: |
L35: | | X35: |
L36: | | X36: |
L37: | | X37: |
L38: | | X38: |
L39: | | X39: |
L40: | | X40: |
L41: | | X41: |
L42: | | X42: |
L43: | | X43: |
L44: | | X44: |
L45: | | X45: |
L46: | | X46: |
L47: | | X47: |
A48: ---- | B48: ---- | C48: ---- | D48: ---- | E48: ---- | F48: ---- | G48: ---- | H48: ---- | I48: ---- | J48: ---- | K48: ---- | L48: | | M48: ---- | N48: ---- | O48: ---- | P48: ---- | Q48: ---- | R48: ---- | S48: ---- | T48: ---- | U48: ---- | V48: ---- | W48: ---- | X48: |
L49: | | X49: |
L50: | | X50: |
L51: | | X51: |
L52: | | X52: |
L53: | | X53: |
L54: | | X54: |
L55: | | X55: |
L56: | | X56: |
L57: | | X57: |
L58: | | X58: |
L59: | | X59: |
L60: | | X60: |
L61: | | X61: |
L62: | | X62: |
L63: | | X63: |
L64: | | X64: |
L65: |
L66: |
L67: |
L68: |
L69: |
L70: |
L71: |
L72: |
L73: |
L74: |
L75: |
L76: |
L77: |
L78: |
L79: |
L80: |
L81: |
L82: |
L83: |
L84: |
L85: |
L86: |
L87: |
L88: |
L89: |
L90: |
L91: |
L92: |
L93: |
L94: |
A95: ---- | B95: ---- | C95: ---- | D95: ---- | E95: ---- | F95: ---- | G95: ---- | H95: ---- | I95: ---- | J95: ---- | K95: ---- | L95: | | M95: ---- | N95: ---- | O95: ---- | P95: ---- | Q95: ---- | R95: ---- | S95: ---- | T95: ---- | U95: ---- | V95: ---- | W95: ---- | X95: |

Sheet 19
A1: Exam: | B1: BattleActs 6C Practice Exam 2 (2019.Fall) | L1: | | M1: Exam: | N1: BattleActs 6C Practice Exam 2 (2019.Fall) - [ANSWER SHEET] | X1: |
A2: Question: | B2: 19 | L2: | | M2: Answer: | N2: =B2 -> 19 | X2: |
A3: Points: | B3: 3 | C3: points | L3: | | M3: Points: | N3: =B3 -> 3 | O3: points | X3: |
L4: | | X4: |
B5: a. | C5: (1 point) | L5: | | M5: Source: | N5: CIA.DCAT | X5: |
L6: | | X6: |
C7: Given the following information about Company A and Company B, explain whether | L7: | | M7: (1 point) | N7: a. | O7: Requirements for good financial condition: | X7: |
C8: the appointed actuary can conclude whether each company is in good financial condition. | L8: | | O8: [1] MCT ratio > 150% (for base scenario, for all years) | X8: |
L9: | | O9: [2] Capital > 0 (for base and all adverse scenarios for all years) | X9: |
C10: Company A | E10: Metric | F10: 2019 | G10: 2020 | H10: 2021 | L10: | | X10: |
C11: Base Scenario | E11: MCT Ratio | F11: 1.5 | G11: 1.75 | H11: 2 | L11: | | O11: Company A: good financial condition | X11: |
E12: Capital (000s) | F12: 10000 | G12: 15000 | H12: 20000 | L12: | | O12: - condition [1] is satisfied | X12: |
C13: Adverse Scenario | E13: MCT Ratio | F13: 1.2 | G13: 1.5 | H13: 1.55 | L13: | | O13: - condition [2] is satisfied because capital > 0 for base & adverse scenario for all years | X13: |
E14: Capital (000s) | F14: 5000 | G14: 10000 | H14: 15000 | L14: | | X14: |
L15: | | O15: Company B: cannot conclude good financial condition | X15: |
C16: Company B | E16: Metric | F16: 2019 | G16: 2020 | H16: 2021 | L16: | | O16: - condition [1] is not satisfied because MCT < 150% for 3rd year of base scenario | X16: |
C17: Base Scenario | E17: MCT Ratio | F17: 1.6 | G17: 1.5 | H17: 1.4 | L17: | | O17: - condition [2] is satisfied because capital > 0 for base & adverse scenario for all years | X17: |
E18: Capital (000s) | F18: 2000 | G18: 1000 | H18: 300 | L18: | | X18: |
C19: Adverse Scenario | E19: MCT Ratio | F19: 1.5 | G19: 1.35 | H19: 0.95 | L19: | | M19: (1 point) | N19: b. | O19: plausible adverse scenario: | X19: |
E20: Capital (000s) | F20: 10000 | G20: 10000 | H20: 10000 | L20: | | O20: - an adverse scenario that is credible AND has a non-trivial chance of occuring | X20: |
L21: | | O21: (NOTE: adverse means an undesireable effect on an insurer's financial condition) | X21: |
B22: b. | C22: (1 point) | L22: | | O22: - statistically, the scenario should lie between the 95th and 99th percentile on the loss | X22: |
L23: | | O23: distribution (the CAS seems to require this as part of the definition) | X23: |
C24: Define the following terms: | L24: | | O24: reverse stress testing: | X24: |
C25: i | D25: plausible adverse scenario | L25: | | O25: - HOW FAR must risk factors change TO DRIVE the insurer's surplus negative during forecast | X25: |
C26: ii | D26: reverse stress testing | L26: | | O26: period THEN determine whether such change is plausible | X26: |
L27: | | X27: |
B28: c. | C28: (1 point) | L28: | | M28: (1 point) | N28: c. | O28: There are lots of valid answers. Here are the ones I chose: | X28: |
L29: | | O29: ripple effects: | X29: |
C30: Suppose the adverse scenario in Company B is investment risk and results in a significant | L30: | | O30: - significant reduction in cash flow | X30: |
C31: decrease in the value of the company's portfolio. Identify 2 possible ripple effects and | L31: | | O31: - forced sale or liquidation (to pay policyholder claims) | X31: |
C32: 2 possible management actions. | L32: | | O32: management actions: | X32: |
L33: | | O33: - sell assets to raise cash | X33: |
L34: | | O34: - change investment strategy (rebalance portfolio from stocks to bonds to reduce risk) | X34: |
L35: | | X35: |
L36: | | X36: |
L37: | | X37: |
L38: | | X38: |
L39: | | X39: |
L40: | | X40: |
L41: | | X41: |
L42: | | X42: |
L43: | | X43: |
L44: | | X44: |
L45: | | X45: |
L46: | | X46: |
L47: | | X47: |
A48: ---- | B48: ---- | C48: ---- | D48: ---- | E48: ---- | F48: ---- | G48: ---- | H48: ---- | I48: ---- | J48: ---- | K48: ---- | L48: | | M48: ---- | N48: ---- | O48: ---- | P48: ---- | Q48: ---- | R48: ---- | S48: ---- | T48: ---- | U48: ---- | V48: ---- | W48: ---- | X48: |
L49: | | X49: |
L50: | | X50: |
L51: | | X51: |
L52: | | X52: |
L53: | | X53: |
L54: | | X54: |
L55: | | X55: |
L56: | | X56: |
L57: | | X57: |
L58: | | X58: |
L59: | | X59: |
L60: | | X60: |
L61: | | X61: |
L62: | | X62: |
L63: | | X63: |
L64: | | X64: |
L65: |
L66: |
L67: |
L68: |
L69: |
L70: |
L71: |
L72: |
L73: |
L74: |
L75: |
L76: |
L77: |
L78: |
L79: |
L80: |
L81: |
L82: |
L83: |
L84: |
L85: |
L86: |
L87: |
L88: |
L89: |
L90: |
L91: |
L92: |
L93: |
L94: |
A95: ---- | B95: ---- | C95: ---- | D95: ---- | E95: ---- | F95: ---- | G95: ---- | H95: ---- | I95: ---- | J95: ---- | K95: ---- | L95: | | M95: ---- | N95: ---- | O95: ---- | P95: ---- | Q95: ---- | R95: ---- | S95: ---- | T95: ---- | U95: ---- | V95: ---- | W95: ---- | X95: |

Sheet 20
A1: Exam: | B1: BattleActs 6C Practice Exam 2 (2019.Fall) | L1: | | M1: Exam: | N1: BattleActs 6C Practice Exam 2 (2019.Fall) - [ANSWER SHEET] | X1: |
A2: Question: | B2: 20 | L2: | | M2: Answer: | N2: =B2 -> 20 | X2: |
A3: Points: | B3: 1.25 | C3: points | L3: | | M3: Points: | N3: =B3 -> 1.25 | O3: points | X3: |
L4: | | X4: |
B5: a. | C5: (0.5 points) | L5: | | M5: Source: | N5: CIA.PrLiabs | X5: |
L6: | | X6: |
C7: Calculate the maximum allowable DPAE and the PDR (if any.) | L7: | | M7: (0.5 points) | N7: a. | O7: This is the easy version of the DPAE problem. You should also practice the harder version | X7: |
L8: | | O8: where you are not given APV but have to calculate it. There is a practice template for | X8: |
C9: net UPR | D9: 72890 | F9: discount rate | H9: 0.055 | L9: | | O9: both versions in the BattleQuizzes for CIA.PrLiabs. | X9: |
C10: FutRe | D10: 5960 | F10: MfAD(inv) | H10: 75 bps | L10: | | X10: |
C11: ELR | D11: 0.85 | F11: MfAD(claims) | H11: 0.1 | L11: | | O11: DPAE | P11: = | Q11: UPR | R11: - | S11: PolLiabs(UPR) | U11: + | V11: UEComm | X11: |
C12: ULAE | D12: 2320 | F12: MfAD(re) | H12: 0.1 | L12: | | P12: = | Q12: =D9 -> 72890 | R12: - | S12: =Q18 -> 68486 | U12: + | V12: =H16 -> 1130 | X12: |
L13: | | P13: = | Q13: =Q12-S12+V12 -> 5534 | R13: <== final answer to part (a) | X13: |
C14: APV | D14: 58846 | F14: gross (PV+LAE) | H14: 62590 | L14: | | X14: |
F15: maintenance | H15: 3680 | L15: | | O15: PolLiabs(UPR) | X15: |
F16: UEComm | H16: 1130 | L16: | | P16: = | Q16: APV | R16: + | S16: FutRe | T16: + | U16: maintenance | X16: |
L17: | | P17: = | Q17: =D14 -> 58846 | R17: + | S17: =D10 -> 5960 | T17: + | U17: =H15 -> 3680 | X17: |
B18: b. | C18: (0.5 points) | L18: | | P18: = | Q18: =Q17+S17+U17 -> 68486 | X18: |
L19: | | X19: |
C20: Identify the purpose of DPAE and whether it is classified as an asset or a liability. | L20: | | M20: (0.5 points) | N20: b. | O20: DPAE is an asset. Its purpose is to recognize prepaid policy expenses over the policy term | X20: |
L21: | | O21: provided such costs are recoverable from equity in the UPR. (This has the advantage of | X21: |
B22: c. | C22: (0.25 points) | L22: | | O22: matching of revenue and expenses.) | X22: |
L23: | | X23: |
C24: Identify 1 example of a DPAE. | L24: | | O24: Not part of the question: Only 1 of DPAE and PDR can be non-zero. Also, PDR is a liability. | X24: |
L25: | | X25: |
L26: | | M26: (0.25 points) | N26: c. | O26: Any 1 of: | P26: (there are probably other examples also) | X26: |
L27: | | O27: - commissions | X27: |
L28: | | O28: - TLF (Taxes, Licenses, Fees) | X28: |
L29: | | O29: - advertising | X29: |
L30: | | X30: |
L31: | | X31: |
L32: | | X32: |
L33: | | X33: |
L34: | | X34: |
L35: | | X35: |
L36: | | X36: |
L37: | | X37: |
L38: | | X38: |
L39: | | X39: |
L40: | | X40: |
L41: | | X41: |
L42: | | X42: |
L43: | | X43: |
L44: | | X44: |
L45: | | X45: |
L46: | | X46: |
L47: | | X47: |
A48: ---- | B48: ---- | C48: ---- | D48: ---- | E48: ---- | F48: ---- | G48: ---- | H48: ---- | I48: ---- | J48: ---- | K48: ---- | L48: | | M48: ---- | N48: ---- | O48: ---- | P48: ---- | Q48: ---- | R48: ---- | S48: ---- | T48: ---- | U48: ---- | V48: ---- | W48: ---- | X48: |
L49: | | X49: |
L50: | | X50: |
L51: | | X51: |
L52: | | X52: |
L53: | | X53: |
L54: | | X54: |
L55: | | X55: |
L56: | | X56: |
L57: | | X57: |
L58: | | X58: |
L59: | | X59: |
L60: | | X60: |
L61: | | X61: |
L62: | | X62: |
L63: | | X63: |
L64: | | X64: |
L65: |
L66: |
L67: |
L68: |
L69: |
L70: |
L71: |
L72: |
L73: |
L74: |
L75: |
L76: |
L77: |
L78: |
L79: |
L80: |
L81: |
L82: |
L83: |
L84: |
L85: |
L86: |
L87: |
L88: |
L89: |
L90: |
L91: |
L92: |
L93: |
L94: |
A95: ---- | B95: ---- | C95: ---- | D95: ---- | E95: ---- | F95: ---- | G95: ---- | H95: ---- | I95: ---- | J95: ---- | K95: ---- | L95: | | M95: ---- | N95: ---- | O95: ---- | P95: ---- | Q95: ---- | R95: ---- | S95: ---- | T95: ---- | U95: ---- | V95: ---- | W95: ---- | X95: |

Sheet 21
A1: Exam: | B1: BattleActs 6C Practice Exam 2 (2019.Fall) | L1: | | M1: Exam: | N1: BattleActs 6C Practice Exam 2 (2019.Fall) - [ANSWER SHEET] | X1: |
A2: Question: | B2: 21 | L2: | | M2: Answer: | N2: =B2 -> 21 | X2: |
A3: Points: | B3: 2.5 | C3: points | L3: | | M3: Points: | N3: =B3 -> 2.5 | O3: points | X3: |
L4: | | X4: |
B5: a. | C5: (1 point) | L5: | | M5: Source: | N5: BCAR.Cat | X5: |
L6: | | X6: |
C7: Identify the steps in a natural catastrophe stress test. | L7: | | M7: (1 point) | N7: a. | O7: surplus: | Q7: - reduce reported surplus by PML (net post-tax 1-in-100 year event) | X7: |
L8: | | O8: reinsurance: | Q8: - increase reinsurance recoverables by at least 40% of ceded PML | X8: |
B9: b. | C9: (1 point) | L9: | | O9: reserves: | Q9: - increase reserves by 40% of net PML | X9: |
L10: | | O10: optional: | Q10: - adjust PMLs used in cat risk portion of standard BCAR score due to | X10: |
C11: Identify the elements of strong cat risk management according to A.M. Best. | L11: | | Q11: changes in reinsurance structure after 1st cat event | X11: |
L12: | | X12: |
B13: c. | C13: (0.5 points) | L13: | | O13: After completing these 4 steps, recalculate the BCAR score according to the | X13: |
L14: | | O14: standard methodology. | X14: |
C15: Identify a conceptual difference between MCT and BCAR regarding the time horizon. | L15: | | X15: |
L16: | | O16: This is different from the answer given in examiner's reports for 2018.Spring and prior. | X16: |
L17: | | O17: (The syllabus changed for 2018.Fall) | X17: |
L18: | | X18: |
L19: | | M19: (1 point) | N19: b. | O19: catastrophe modeling: | X19: |
L20: | | O20: - parameter selection is critical & use more than 1 model | X20: |
L21: | | O21: data quality: | X21: |
L22: | | O22: - accurate property location & coding (type of building) | X22: |
L23: | | O23: - accurate property value & insurance-to-value | X23: |
L24: | | O24: - conduct site reviews (so that information is up-to-date) | X24: |
L25: | | O25: - safeguards to prevent manipulation by insured | X25: |
L26: | | O26: aggregate loss exposure: | X26: |
L27: | | O27: - use aggregate losses as a secondary test of model | X27: |
L28: | | O28: monitoring (MML): | X28: |
L29: | | O29: - Measure, Monitor, Limit exposure on a continuous basis | X29: |
L30: | | X30: |
L31: | | M31: (0.5 points) | N31: c. | O31: BCAR: | P31: - capital must support current & future premium risk | X31: |
L32: | | O32: MCT: | P32: - focuses more on current year's risk | X32: |
L33: | | X33: |
L34: | | O34: Note: | P34: DCAT usually projects for 3 years, so if you combine MCT with DCAT, you get a | X34: |
L35: | | P35: longer time horizon (not part of answer, just a side note.) | X35: |
L36: | | X36: |
L37: | | X37: |
L38: | | X38: |
L39: | | X39: |
L40: | | X40: |
L41: | | X41: |
L42: | | X42: |
L43: | | X43: |
L44: | | X44: |
L45: | | X45: |
L46: | | X46: |
L47: | | X47: |
A48: ---- | B48: ---- | C48: ---- | D48: ---- | E48: ---- | F48: ---- | G48: ---- | H48: ---- | I48: ---- | J48: ---- | K48: ---- | L48: | | M48: ---- | N48: ---- | O48: ---- | P48: ---- | Q48: ---- | R48: ---- | S48: ---- | T48: ---- | U48: ---- | V48: ---- | W48: ---- | X48: |
L49: | | X49: |
L50: | | X50: |
L51: | | X51: |
L52: | | X52: |
L53: | | X53: |
L54: | | X54: |
L55: | | X55: |
L56: | | X56: |
L57: | | X57: |
L58: | | X58: |
L59: | | X59: |
L60: | | X60: |
L61: | | X61: |
L62: | | X62: |
L63: | | X63: |
L64: | | X64: |
L65: |
L66: |
L67: |
L68: |
L69: |
L70: |
L71: |
L72: |
L73: |
L74: |
L75: |
L76: |
L77: |
L78: |
L79: |
L80: |
L81: |
L82: |
L83: |
L84: |
L85: |
L86: |
L87: |
L88: |
L89: |
L90: |
L91: |
L92: |
L93: |
L94: |
A95: ---- | B95: ---- | C95: ---- | D95: ---- | E95: ---- | F95: ---- | G95: ---- | H95: ---- | I95: ---- | J95: ---- | K95: ---- | L95: | | M95: ---- | N95: ---- | O95: ---- | P95: ---- | Q95: ---- | R95: ---- | S95: ---- | T95: ---- | U95: ---- | V95: ---- | W95: ---- | X95: |

Sheet 22
A1: Exam: | B1: BattleActs 6C Practice Exam 2 (2019.Fall) | L1: | | M1: Exam: | N1: BattleActs 6C Practice Exam 2 (2019.Fall) - [ANSWER SHEET] | X1: |
A2: Question: | B2: 22 | L2: | | M2: Answer: | N2: =B2 -> 22 | X2: |
A3: Points: | B3: 2 | C3: points | L3: | | M3: Points: | N3: =B3 -> 2 | O3: points | X3: |
L4: | | X4: |
B5: a. | C5: (0.5 points) | L5: | | M5: Source: | N5: CIA.Disclosure, CIA.Runoff, CIA.Discnt | X5: |
L6: | | X6: |
C7: Identify 2 considerations in determining concentration risk of an insurer. | L7: | | M7: (0.5 points) | N7: a. | O7: Any 2 of: | X7: |
L8: | | O8: diversification: | Q8: - by line of business (more lines is better) | X8: |
B9: b. | C9: (0.5 points) | L9: | | O9: diversification: | Q9: - geographically (greater diversification is better) | X9: |
L10: | | O10: U/W limit: | Q10: - lower is better | X10: |
C11: Briefly describe the 2 approaches which account for the time value of money when | L11: | | O11: reinsurance: | Q11: - more sources of reinsurance is better | X11: |
C12: evaluating the runoff of claims liabilities. | L12: | | X12: |
L13: | | M13: (0.5 points) | N13: b. | O13: - discount the paid & unpaid amounts at time t back to time t - 1 | X13: |
B14: c. | C14: (1 point) | L14: | | O14: - subtract investment income earned during calendar year t on supporting assets and | X14: |
L15: | | O15: liabilities | X15: |
C16: Identify 4 considerations in determining the interest rate used to discount policy liabilities. | L16: | | X16: |
L17: | | M17: (1 point) | N17: c. | O17: Any 4 of: [Hint: MARY-(IE)-CapG] | X17: |
L18: | | O18: Methods for asset valuation and reporting investment income | X18: |
L19: | | O19: Allocation of assets and investment income by LOB | X19: |
L20: | | O20: Return on assets at balance sheet date | X20: |
L21: | | O21: Yield on assets acquired after balance sheet date | X21: |
L22: | | O22: Investment Expenses and losses from default | X22: |
L23: | | O23: CapG: capital gains/losses on assets sold after balance sheet date | X23: |
L24: | | X24: |
L25: | | M25: Notes: | N25: a. | O25: from wiki article CIA.Disclosure | X25: |
L26: | | N26: b. | O26: from wiki article CIA.Runoff and 2016.Fall #26d | X26: |
L27: | | N27: c. | O27: from wiki article CIA.Discnt and BattleHack #1: Top Questions | X27: |
L28: | | X28: |
L29: | | X29: |
L30: | | X30: |
L31: | | X31: |
L32: | | X32: |
L33: | | X33: |
L34: | | X34: |
L35: | | X35: |
L36: | | X36: |
L37: | | X37: |
L38: | | X38: |
L39: | | X39: |
L40: | | X40: |
L41: | | X41: |
L42: | | X42: |
L43: | | X43: |
L44: | | X44: |
L45: | | X45: |
L46: | | X46: |
L47: | | X47: |
A48: ---- | B48: ---- | C48: ---- | D48: ---- | E48: ---- | F48: ---- | G48: ---- | H48: ---- | I48: ---- | J48: ---- | K48: ---- | L48: | | M48: ---- | N48: ---- | O48: ---- | P48: ---- | Q48: ---- | R48: ---- | S48: ---- | T48: ---- | U48: ---- | V48: ---- | W48: ---- | X48: |
L49: | | X49: |
L50: | | X50: |
L51: | | X51: |
L52: | | X52: |
L53: | | X53: |
L54: | | X54: |
L55: | | X55: |
L56: | | X56: |
L57: | | X57: |
L58: | | X58: |
L59: | | X59: |
L60: | | X60: |
L61: | | X61: |
L62: | | X62: |
L63: | | X63: |
L64: | | X64: |
L65: |
L66: |
L67: |
L68: |
L69: |
L70: |
L71: |
L72: |
L73: |
L74: |
L75: |
L76: |
L77: |
L78: |
L79: |
L80: |
L81: |
L82: |
L83: |
L84: |
L85: |
L86: |
L87: |
L88: |
L89: |
L90: |
L91: |
L92: |
L93: |
L94: |
A95: ---- | B95: ---- | C95: ---- | D95: ---- | E95: ---- | F95: ---- | G95: ---- | H95: ---- | I95: ---- | J95: ---- | K95: ---- | L95: | | M95: ---- | N95: ---- | O95: ---- | P95: ---- | Q95: ---- | R95: ---- | S95: ---- | T95: ---- | U95: ---- | V95: ---- | W95: ---- | X95: |

Sheet 23
A1: Exam: | B1: BattleActs 6C Practice Exam 2 (2019.Fall) | L1: | | M1: Exam: | N1: BattleActs 6C Practice Exam 2 (2019.Fall) - [ANSWER SHEET] | X1: |
A2: Question: | B2: 23 | L2: | | M2: Answer: | N2: =B2 -> 23 | X2: |
A3: Points: | B3: 2.75 | C3: points | L3: | | M3: Points: | N3: =B3 -> 2.75 | O3: points | X3: |
L4: | | X4: |
B5: a. | C5: (1.5 points) | L5: | | M5: Source: | N5: Odo.FinReg, IFA.Solvency2 | X5: |
L6: | | X6: |
C7: Solvency II is a principles-based insurance regulatory system for capital levels of | L7: | | M7: (1.5 points) | N7: a. | O7: 3 pillars: | P7: [Hint: QGT] | X7: |
C8: insurance companies in the European Union. Identify and briefly describe the 3 pillars | L8: | | O8: Quantitative Pillar: | X8: |
C9: of Solvency II. | L9: | | O9: - sets SCR & MCR (Solvency Capital Requirement & Minimum Capital Requirement) | X9: |
L10: | | O10: - SCR corresponds to 99.5% VaR (Value at Risk) | X10: |
B11: b. | C11: (0.5 points) | L11: | | O11: Governance Pillar: | X11: |
L12: | | O12: - requires adequate governance for: | X12: |
C13: ENID (Events Not in Data) are often described as high-severity, low-probability events | L13: | | P13: - internal audit | X13: |
C14: not reflected in historical data. | L14: | | P14: - actuarial | X14: |
L15: | | P15: - risk management | X15: |
C16: According to the Institute & Faculty of Actuaries reading, "Solvency II Technical Provisions | L16: | | P16: - compliance | X16: |
C17: for General Insurers", what is the proposed definition of ENID. | L17: | | O17: Transparency | X17: |
C18: (This definition is sometimes referred to as the purpose of ENID.) | L18: | | O18: - supervisory reporting & public disclosure | X18: |
L19: | | O19: (increases market discipline because companies know their decisions are public) | X19: |
B20: c. | C20: (0.75 points) | L20: | | X20: |
L21: | | M21: (0.5 points) | N21: b. | O21: - the balancing amount required to bring the best estimate of loss reserves before ENID | X21: |
C22: Identify 3 ways ENIDs may be identified. | L22: | | O22: up to an amount allowing for all possible future outcomes | X22: |
L23: | | X23: |
L24: | | M24: (0.75 points) | N24: c. | O24: Any 3 of: | P24: consider… | X24: |
L25: | | O25: - future settlements of past events | X25: |
L26: | | O26: - potential future claims related to current exposures | X26: |
L27: | | O27: - catastrophes | X27: |
L28: | | O28: - court awards | X28: |
L29: | | O29: - legislative changes | X29: |
L30: | | X30: |
L31: | | X31: |
L32: | | X32: |
L33: | | X33: |
L34: | | X34: |
L35: | | X35: |
L36: | | X36: |
L37: | | X37: |
L38: | | X38: |
L39: | | X39: |
L40: | | X40: |
L41: | | X41: |
L42: | | X42: |
L43: | | X43: |
L44: | | X44: |
L45: | | X45: |
L46: | | X46: |
L47: | | X47: |
A48: ---- | B48: ---- | C48: ---- | D48: ---- | E48: ---- | F48: ---- | G48: ---- | H48: ---- | I48: ---- | J48: ---- | K48: ---- | L48: | | M48: ---- | N48: ---- | O48: ---- | P48: ---- | Q48: ---- | R48: ---- | S48: ---- | T48: ---- | U48: ---- | V48: ---- | W48: ---- | X48: |
L49: | | X49: |
L50: | | X50: |
L51: | | X51: |
L52: | | X52: |
L53: | | X53: |
L54: | | X54: |
L55: | | X55: |
L56: | | X56: |
L57: | | X57: |
L58: | | X58: |
L59: | | X59: |
L60: | | X60: |
L61: | | X61: |
L62: | | X62: |
L63: | | X63: |
L64: | | X64: |
L65: |
L66: |
L67: |
L68: |
L69: |
L70: |
L71: |
L72: |
L73: |
L74: |
L75: |
L76: |
L77: |
L78: |
L79: |
L80: |
L81: |
L82: |
L83: |
L84: |
L85: |
L86: |
L87: |
L88: |
L89: |
L90: |
L91: |
L92: |
L93: |
L94: |
A95: ---- | B95: ---- | C95: ---- | D95: ---- | E95: ---- | F95: ---- | G95: ---- | H95: ---- | I95: ---- | J95: ---- | K95: ---- | L95: | | M95: ---- | N95: ---- | O95: ---- | P95: ---- | Q95: ---- | R95: ---- | S95: ---- | T95: ---- | U95: ---- | V95: ---- | W95: ---- | X95: |

Sheet 24
A1: Exam: | B1: BattleActs 6C Practice Exam 2 (2019.Fall) | L1: | | M1: Exam: | N1: BattleActs 6C Practice Exam 2 (2019.Fall) - [ANSWER SHEET] | X1: |
A2: Question: | B2: 24 | L2: | | M2: Answer: | N2: =B2 -> 24 | X2: |
A3: Points: | B3: 2 | C3: points | L3: | | M3: Points: | N3: =B3 -> 2 | O3: points | X3: |
L4: | | X4: |
B5: a. | C5: (1.5 points) | L5: | | M5: Source: | N5: OSFI.ORSA | X5: | | Y5: OSFI.ORSA
L6: | | X6: |
C7: Describe 3 key elements of ORSA. | L7: | | M7: (1.5 points) | N7: a. | O7: Any 3 of: | X7: |
L8: | | O8: risk identification and assessment: | X8: |
B9: b. | C9: (0.5 points) | L9: | | O9: - identify & assess the materiality of foreseeable & emerging risks | X9: |
L10: | | O10: relate risk to capital: | X10: |
C11: Identify a way that ORSA is a better management tool than MCT. | L11: | | O11: - set internal capital using stress-testing techniques | X11: |
L12: | | O12: - must withstand a specified loss without falling below supervisory capital requirements | X12: |
L13: | | O13: responsibilities of Board of Directors: | X13: |
L14: | | O14: - review reasonableness & appropriateness of risk profile & capital requirements in the | X14: |
L15: | | O15: context of board approved risk appetite & risk tolerance | X15: |
L16: | | O16: monitoring & reporting of risks: | X16: |
L17: | | O17: - annual reports to Board of Directors & Senior Management on risk profile & capital | X17: |
L18: | | O18: assessment | X18: |
L19: | | O19: internal controls & objective review | X19: |
L20: | | O20: - review for accuracy, integrity, reasonableness | X20: |
L21: | | O21: - objective reviewer: internal or external auditor OR skilled professional not involved in | X21: |
L22: | | O22: the ORSA process | X22: |
L23: | | X23: |
L24: | | O24: NOTE: The answers given in the examiner's report for 2015.Fall #23 are very long. I think | X24: |
L25: | | O25: shorter answers could still receive full credit because each element is only worth 0.5 points. | X25: |
L26: | | X26: |
L27: | | M27: (0.5 points) | N27: b. | O27: Any 1 of: | X27: |
L28: | | O28: - ORSA considers more risks than MCT and includes all material risks | X28: |
L29: | | O29: - ORSA considers dependencies and correlations between risks whereas MCT uses a | X29: |
L30: | | O30: simplified approach that only considers correlation between insurance and asset risk | X30: |
L31: | | O31: - ORSA includes assessment of internal controls to allow for better management | X31: |
L32: | | O32: - ORSA allows for the setting of an internal target to reflect an insurer’s risk appetite | X32: |
L33: | | O33: - ORSA allows for a better qualitative assessment of risk (MCT is only quantitative) | X33: |
L34: | | O34: - ORSA is tailored to a company’s own risk profile, whereas MCT is a | X34: |
L35: | | O35: formula-based approach that is not specific to the company | X35: |
L36: | | O36: - ORSA is more of a forward-looking measure | X36: |
L37: | | O37: - ORSA is used for mitigation (or prevention) of future problems | X37: |
L38: | | X38: |
L39: | | O39: Note: | X39: |
L40: | | O40: - several of these also apply to BCAR versus MCT | X40: |
L41: | | X41: |
L42: | | X42: |
L43: | | X43: |
L44: | | X44: |
L45: | | X45: |
L46: | | X46: |
L47: | | X47: |
A48: ---- | B48: ---- | C48: ---- | D48: ---- | E48: ---- | F48: ---- | G48: ---- | H48: ---- | I48: ---- | J48: ---- | K48: ---- | L48: | | M48: ---- | N48: ---- | O48: ---- | P48: ---- | Q48: ---- | R48: ---- | S48: ---- | T48: ---- | U48: ---- | V48: ---- | W48: ---- | X48: |
L49: | | X49: |
L50: | | X50: |
L51: | | X51: |
L52: | | X52: |
L53: | | X53: |
L54: | | X54: |
L55: | | X55: |
L56: | | X56: |
L57: | | X57: |
L58: | | X58: |
L59: | | X59: |
L60: | | X60: |
L61: | | X61: |
L62: | | X62: |
L63: | | X63: |
L64: | | X64: |
L65: |
L66: |
L67: |
L68: |
L69: |
L70: |
L71: |
L72: |
L73: |
L74: |
L75: |
L76: |
L77: |
L78: |
L79: |
L80: |
L81: |
L82: |
L83: |
L84: |
L85: |
L86: |
L87: |
L88: |
L89: |
L90: |
L91: |
L92: |
L93: |
L94: |
A95: ---- | B95: ---- | C95: ---- | D95: ---- | E95: ---- | F95: ---- | G95: ---- | H95: ---- | I95: ---- | J95: ---- | K95: ---- | L95: | | M95: ---- | N95: ---- | O95: ---- | P95: ---- | Q95: ---- | R95: ---- | S95: ---- | T95: ---- | U95: ---- | V95: ---- | W95: ---- | X95: |

Sheet 25
A1: Exam: | B1: BattleActs 6C Practice Exam 2 (2019.Fall) | L1: | | M1: Exam: | N1: BattleActs 6C Practice Exam 2 (2019.Fall) - [ANSWER SHEET] | X1: |
A2: Question: | B2: 25 | L2: | | M2: Answer: | N2: =B2 -> 25 | X2: |
A3: Points: | B3: 3.5 | C3: points | L3: | | M3: Points: | N3: =B3 -> 3.5 | O3: points | X3: |
L4: | | X4: |
B5: a. | C5: (1.5 points) | L5: | | M5: Source: | N5: CIA.Models | X5: | | Y5: CIA.Models
L6: | | X6: |
C7: According to the CIA paper on modeling, identify and briefly describe the 3 elements | L7: | | M7: (1.5 points) | N7: a. | O7: model elements: | X7: |
C8: a model should contain. | L8: | | O8: - all models require 3 elements: [Hint: SIR] | X8: |
L9: | | O9: model Specification | X9: |
B10: b. | C10: (1 point) | L10: | | O10: ==> a description of the parts of a model and their interactions (includes data, | X10: |
L11: | | O11: assumptions, methods, entities, events) | X11: |
C12: Identify and briefly describe the 4 steps in validating a newly created model. | L12: | | O12: model Implementation | X12: |
L13: | | O13: ==> the systems that perform the calculations (computer programs, spreadsheets,...) | X13: |
B14: c. | C14: (1 point) | L14: | | O14: model Run | X14: |
L15: | | O15: ==> the inputs/outputs of the implementation | X15: |
C16: Given the following information, use the 2-dimensional model risk rating system to | L16: | | X16: |
C17: evaluate the overall model risk. | L17: | | M17: (2 points) | N17: b. | O17: validating a new model: | R17: (see BattleCard answers for more details if desired) | X17: |
L18: | | O18: review specification: | X18: |
C19: task: | D19: forecast capital requirements on a quarterly basis | L19: | | O19: ==> verify that DAMs are appropriate (Data, Methods, Assumptions) | X19: |
C20: method: | D20: use a brand new untested model of high complexity | L20: | | O20: validate implementation: | X20: |
L21: | | O21: ==> do backtesting with historical data | X21: |
C22: model risk considerations: | L22: | | O22: deal with limitations: | X22: |
C23: - capital requirements are significant | L23: | | O23: ==> understand the range of uses for which the model was designed & tested | X23: |
C24: - model is used frequently | L24: | | O24: keep documentation: | X24: |
C25: - there is no documentation for the model | L25: | | O25: ==> how the model was chosen & tested (should also note limitations of model) | X25: |
C26: - a summer intern with no prior actuarial experience is running the model | L26: | | X26: |
L27: | | M27: (2 points) | N27: c. | O27: For severity of failure, consider: [Hint: FIF] | X27: |
L28: | | O28: Financial significance: high (so risk is high) | X28: |
L29: | | O29: Importance of Model: no info provided | X29: |
L30: | | O30: Frequency of use: high (so risk is high) | X30: |
L31: | | O31: Conclusion: severity risk is HIGH | X31: |
L32: | | X32: |
L33: | | O33: For likelihood of failure, consider | X33: |
L34: | | O34: complexity: | Q34: - high (so risk is high) | X34: |
L35: | | O35: expertise of user: | Q35: - low (so risk is high) | X35: |
L36: | | O36: docs: | Q36: - none (so risk is high) | X36: |
L37: | | O37: testing: | Q37: - none (so risk is high) | X37: |
L38: | | O38: Conclusion: likelihood of failure is HIGH | X38: |
L39: | | X39: |
L40: | | O40: Overall conclusion: risk of model failure is HIGH | X40: |
L41: | | X41: |
L42: | | X42: |
L43: | | X43: |
L44: | | X44: |
L45: | | X45: |
L46: | | X46: |
L47: | | X47: |
A48: ---- | B48: ---- | C48: ---- | D48: ---- | E48: ---- | F48: ---- | G48: ---- | H48: ---- | I48: ---- | J48: ---- | K48: ---- | L48: | | M48: ---- | N48: ---- | O48: ---- | P48: ---- | Q48: ---- | R48: ---- | S48: ---- | T48: ---- | U48: ---- | V48: ---- | W48: ---- | X48: |
L49: | | X49: |
L50: | | X50: |
L51: | | X51: |
L52: | | X52: |
L53: | | X53: |
L54: | | X54: |
L55: | | X55: |
L56: | | X56: |
L57: | | X57: |
L58: | | X58: |
L59: | | X59: |
L60: | | X60: |
L61: | | X61: |
L62: | | X62: |
L63: | | X63: |
L64: | | X64: |
L65: | | X65: |
L66: | | X66: |
L67: | | X67: |
L68: | | X68: |
L69: | | X69: |
L70: | | X70: |
L71: | | X71: |
L72: | | X72: |
L73: | | X73: |
L74: | | X74: |
L75: | | X75: |
L76: | | X76: |
L77: | | X77: |
L78: | | X78: |
L79: | | X79: |
L80: | | X80: |
L81: | | X81: |
L82: | | X82: |
L83: | | X83: |
L84: | | X84: |
L85: | | X85: |
L86: | | X86: |
L87: | | X87: |
L88: | | X88: |
L89: | | X89: |
L90: | | X90: |
L91: | | X91: |
L92: | | X92: |
L93: | | X93: |
L94: | | X94: |
A95: ---- | B95: ---- | C95: ---- | D95: ---- | E95: ---- | F95: ---- | G95: ---- | H95: ---- | I95: ---- | J95: ---- | K95: ---- | L95: | | M95: ---- | N95: ---- | O95: ---- | P95: ---- | Q95: ---- | R95: ---- | S95: ---- | T95: ---- | U95: ---- | V95: ---- | W95: ---- | X95: |

Sheet 26
A1: Exam: | B1: BattleActs 6C Practice Exam 2 (2019.Fall) | L1: | | M1: Exam: | N1: BattleActs 6C Practice Exam 2 (2019.Fall) - [ANSWER SHEET] | X1: |
A2: Question: | B2: 26 | L2: | | M2: Answer: | N2: =B2 -> 26 | X2: |
A3: Points: | B3: 2 | C3: points | L3: | | M3: Points: | N3: =B3 -> 2 | O3: points | X3: |
L4: | | X4: |
B5: a. | C5: (1.5 points) | L5: | | M5: Source: | N5: OSFI.CorpGov | X5: |
L6: | | X6: |
C7: Identify and briefly describe 2 items that should be included in a Risk Appetite Framework. | L7: | | M7: (1.5 points) | N7: a. | O7: Any 2 with 2 sub-points: | R7: (See 2015.Spring #4 for other answers) | X7: |
L8: | | O8: Risk Appetite Statement | X8: |
B9: b. | C9: (0.5 points) | L9: | | O9: - reflects aggregate level of risk | X9: |
L10: | | O10: - reflects type of risk | X10: |
C11: Identify 2 elements of good corporate governance. | L11: | | O11: Risk limit/Risk tolerance is the allocation of the FRFI’s risk appetite statement to | X11: |
L12: | | O12: - specific risk categories (IMCO: insurance, market, credit, operational) | X12: |
L13: | | O13: - line of business | X13: |
L14: | | O14: Roles/Responsibilities of those implementing Risk Appetite Framework | X14: |
L15: | | O15: - Board of Directors | X15: |
L16: | | O16: - Senior Management | X16: |
L17: | | X17: |
L18: | | M18: (0.5 points) | N18: b. | O18: elements of good corporate governance: | X18: |
L19: | | O19: - incentivize good corporate behaviour | X19: |
L20: | | O20: - enable monitoring of operations & performance | X20: |
L21: | | X21: |
L22: | | X22: |
L23: | | X23: |
L24: | | X24: |
L25: | | X25: |
L26: | | X26: |
L27: | | X27: |
L28: | | X28: |
L29: | | X29: |
L30: | | X30: |
L31: | | X31: |
L32: | | X32: |
L33: | | X33: |
L34: | | X34: |
L35: | | X35: |
L36: | | X36: |
L37: | | X37: |
L38: | | X38: |
L39: | | X39: |
L40: | | X40: |
L41: | | X41: |
L42: | | X42: |
L43: | | X43: |
L44: | | X44: |
L45: | | X45: |
L46: | | X46: |
L47: | | X47: |
A48: ---- | B48: ---- | C48: ---- | D48: ---- | E48: ---- | F48: ---- | G48: ---- | H48: ---- | I48: ---- | J48: ---- | K48: ---- | L48: | | M48: ---- | N48: ---- | O48: ---- | P48: ---- | Q48: ---- | R48: ---- | S48: ---- | T48: ---- | U48: ---- | V48: ---- | W48: ---- | X48: |
L49: | | X49: |
L50: | | X50: |
L51: | | X51: |
L52: | | X52: |
L53: | | X53: |
L54: | | X54: |
L55: | | X55: |
L56: | | X56: |
L57: | | X57: |
L58: | | X58: |
L59: | | X59: |
L60: | | X60: |
L61: | | X61: |
L62: | | X62: |
L63: | | X63: |
L64: | | X64: |
L65: |
L66: |
L67: |
L68: |
L69: |
L70: |
L71: |
L72: |
L73: |
L74: |
L75: |
L76: |
L77: |
L78: |
L79: |
L80: |
L81: |
L82: |
L83: |
L84: |
L85: |
L86: |
L87: |
L88: |
L89: |
L90: |
L91: |
L92: |
L93: |
L94: |
A95: ---- | B95: ---- | C95: ---- | D95: ---- | E95: ---- | F95: ---- | G95: ---- | H95: ---- | I95: ---- | J95: ---- | K95: ---- | L95: | | M95: ---- | N95: ---- | O95: ---- | P95: ---- | Q95: ---- | R95: ---- | S95: ---- | T95: ---- | U95: ---- | V95: ---- | W95: ---- | X95: |

Sheet 27
A1: Exam: | B1: BattleActs 6C Practice Exam 2 (2019.Fall) | L1: | | M1: Exam: | N1: BattleActs 6C Practice Exam 2 (2019.Fall) - [ANSWER SHEET] | X1: |
A2: Question: | B2: 27 | L2: | | M2: Answer: | N2: =B2 -> 27 | X2: |
A3: Points: | B3: 1.75 | C3: points | L3: | | M3: Points: | N3: =B3 -> 1.75 | O3: points | X3: |
L4: | | X4: |
B5: a. | C5: (0.25 points) | L5: | | M5: Source: | N5: CIA.Subseq | X5: |
L6: | | X6: |
C7: Define the term 'subsequent event'. | L7: | | M7: (0.25 points) | N7: a. | O7: subsequent event: | X7: |
L8: | | O8: - an event the AA becomes aware of after the calculation date but before the report date | X8: |
B9: b. | C9: (1.5 points) | L9: | | X9: |
L10: | | M10: (1.5 points) | N10: b. | O10: i | P10: - actuary became aware after the CalcDt but before the RptDt, therefore this | X10: |
C11: The Appointed Actuary of a property and casualty insurance company is valuing policy | L11: | | P11: is a subsequent event and we're on the middle branch | X11: |
C12: liabilities as at December 31, 2019. The report date is February 22, 2020. For each of | L12: | | P12: - Error: no | X12: |
C13: the following scenarios, briefly discuss the actions that the Appointed Actuary should take. | L13: | | P13: - When did event occur: after CalcDt | X13: |
L14: | | P14: - Different (did the event make the entity different?): yes, before CalcDt | X14: |
C15: i | D15: A insurance company's reinsurer became insolvent on Jan 15. The primary | L15: | | P15: (failure provided further evidence of deteriorating conditions with reinsurer) | X15: |
D16: insurer's actuary became aware on Jan 16. | L16: | | P16: --> reflect (assuming the event is material) | X16: |
L17: | | X17: |
C18: ii | D18: The stock market suffered a 10% drop in value on Jan 5. The actuary became | L18: | | O18: ii | P18: - actuary became aware after the CalcDt but before the RptDt, therefore this | X18: |
D19: aware on the same day. | L19: | | P19: is a subsequent event and we're on the middle branch | X19: |
L20: | | P20: - Error: no | X20: |
C21: iii | D21: A severe winter storm occurred on Jan 19. The actuary became aware | L21: | | P21: - When did event occur: after CalcDt | X21: |
D22: on Jan 21. | L22: | | P22: - Different (did the event make the entity different?): yes, after CalcDt | X22: |
L23: | | P23: - Purpose: report on entity as it was | X23: |
L24: | | P24: --> inform only (assuming the event is material) | X24: |
L25: | | X25: |
L26: | | O26: iii | P26: - actuary became aware after the CalcDt but before the RptDt, therefore this | X26: |
L27: | | P27: is a subsequent event and we're on the middle branch | X27: |
L28: | | P28: - Error: no | X28: |
L29: | | P29: - When did event occur: after CalcDt | X29: |
L30: | | P30: - Different (did the event make the entity different?): yes, after CalcDt | X30: |
L31: | | P31: - Purpose: report on entity as it was | X31: |
L32: | | P32: --> inform only (assuming the event is material) | X32: |
L33: | | X33: |
L34: | | X34: |
L35: | | X35: |
L36: | | X36: |
L37: | | X37: |
L38: | | X38: |
L39: | | X39: |
L40: | | X40: |
L41: | | X41: |
L42: | | X42: |
L43: | | X43: |
L44: | | X44: |
L45: | | X45: |
L46: | | X46: |
L47: | | X47: |
A48: ---- | B48: ---- | C48: ---- | D48: ---- | E48: ---- | F48: ---- | G48: ---- | H48: ---- | I48: ---- | J48: ---- | K48: ---- | L48: | | M48: ---- | N48: ---- | O48: ---- | P48: ---- | Q48: ---- | R48: ---- | S48: ---- | T48: ---- | U48: ---- | V48: ---- | W48: ---- | X48: |
L49: | | X49: |
L50: | | X50: |
L51: | | X51: |
L52: | | X52: |
L53: | | X53: |
L54: | | X54: |
L55: | | X55: |
L56: | | X56: |
L57: | | X57: |
L58: | | X58: |
L59: | | X59: |
L60: | | X60: |
L61: | | X61: |
L62: | | X62: |
L63: | | X63: |
L64: | | X64: |
L65: |
L66: |
L67: |
L68: |
L69: |
L70: |
L71: |
L72: |
L73: |
L74: |
L75: |
L76: |
L77: |
L78: |
L79: |
L80: |
L81: |
L82: |
L83: |
L84: |
L85: |
L86: |
L87: |
L88: |
L89: |
L90: |
L91: |
L92: |
L93: |
L94: |
A95: ---- | B95: ---- | C95: ---- | D95: ---- | E95: ---- | F95: ---- | G95: ---- | H95: ---- | I95: ---- | J95: ---- | K95: ---- | L95: | | M95: ---- | N95: ---- | O95: ---- | P95: ---- | Q95: ---- | R95: ---- | S95: ---- | T95: ---- | U95: ---- | V95: ---- | W95: ---- | X95: |

Sheet 28
A1: Exam: | B1: BattleActs 6C Practice Exam 2 (2019.Fall) | L1: | | M1: Exam: | N1: BattleActs 6C Practice Exam 2 (2019.Fall) - [ANSWER SHEET] | X1: |
A2: Question: | B2: 28 | L2: | | M2: Answer: | N2: =B2 -> 28 | X2: |
A3: Points: | B3: 2.75 | C3: points | L3: | | M3: Points: | N3: =B3 -> 2.75 | O3: points | X3: |
L4: | | X4: |
B5: a. | C5: (1 point) | L5: | | M5: Source: | N5: OSFI.AA | X5: | | Y5: OSFI.AA
L6: | | X6: |
C7: Identify 4 of the legal requirements surrounding the appointment of the Appointed Actuary. | L7: | | M7: (1 point) | N7: a. | O7: legal requirements: Any 4 of… | X7: |
C8: (Note that this is different from the qualifications required of the AA.) | L8: | | O8: - insurer must appoint an AA | X8: |
L9: | | O9: - insurer must notify OSFI of the appointment | X9: |
B10: b. | C10: (1 point) | L10: | | O10: - AA must be a FCIA | X10: |
L11: | | O11: - AA cannot be CEO/COO or anything similar without authorization from OSFI | X11: |
C12: Briefly describe 4 roles or duties of the Appointed Actuary (AA). | L12: | | O12: - AA cannot be CFO without audit committee permission | X12: |
L13: | | O13: - insurer must notify OSFI if the Board of Directors revokes AA's appointment | X13: |
B14: c. | C14: (0.75 points) | L14: | | O14: - outgoing AA must submit report to Board of Directors & OSFI on reasons for leaving | X14: |
L15: | | O15: - incoming must review outgoing AA's report within 15 days (if report is available) | X15: |
C16: Identify 3 objectives of a peer review. | L16: | | X16: |
L17: | | M17: (1 point) | N17: b. | O17: roles & duties: Any 4: | R17: See 2016.Fall #34c | X17: |
L18: | | O18: - perform valuation of policy liabilities at year-end using accepted actuarial practice | X18: |
L19: | | O19: - produce AA report | X19: |
L20: | | O20: - produce annual financial position report to Board of Directors | X20: |
L21: | | O21: - produce financial condition report when directed by OSFI, possibly using DCAT | X21: |
L22: | | O22: - produce MAE report (Material Adverse Event) for items requiring rectification | X22: |
L23: | | O23: - produce policyholder report on whether policyholders are treated fairly regarding | X23: |
L24: | | O24: dividends, bonuses, other benefits | X24: |
L25: | | O25: - final opinion/memo on financial statement items requiring significant calcs or judgment | X25: |
L26: | | X26: |
L27: | | M27: (0.75 point) | O27: Hint: AAC | R27: See 2016.Fall #27f | X27: |
L28: | | O28: Assist OSFI in assessing insurer safety & soundness | X28: |
L29: | | O29: Assist AA by providing independent advice and a source for professional development | X29: |
L30: | | O30: Confidence: increase confidence in the AA with management, public, regulators | X30: |
L31: | | X31: |
L32: | | X32: |
L33: | | X33: |
L34: | | X34: |
L35: | | X35: |
L36: | | X36: |
L37: | | X37: |
L38: | | X38: |
L39: | | X39: |
L40: | | X40: |
L41: | | X41: |
L42: | | X42: |
L43: | | X43: |
L44: | | X44: |
L45: | | X45: |
L46: | | X46: |
L47: | | X47: |
A48: ---- | B48: ---- | C48: ---- | D48: ---- | E48: ---- | F48: ---- | G48: ---- | H48: ---- | I48: ---- | J48: ---- | K48: ---- | L48: | | M48: ---- | N48: ---- | O48: ---- | P48: ---- | Q48: ---- | R48: ---- | S48: ---- | T48: ---- | U48: ---- | V48: ---- | W48: ---- | X48: |
L49: | | X49: |
L50: | | X50: |
L51: | | X51: |
L52: | | X52: |
L53: | | X53: |
L54: | | X54: |
L55: | | X55: |
L56: | | X56: |
L57: | | X57: |
L58: | | X58: |
L59: | | X59: |
L60: | | X60: |
L61: | | X61: |
L62: | | X62: |
L63: | | X63: |
L64: | | X64: |
L65: |
L66: |
L67: |
L68: |
L69: |
L70: |
L71: |
L72: |
L73: |
L74: |
L75: |
L76: |
L77: |
L78: |
L79: |
L80: |
L81: |
L82: |
L83: |
L84: |
L85: |
L86: |
L87: |
L88: |
L89: |
L90: |
L91: |
L92: |
L93: |
L94: |
A95: ---- | B95: ---- | C95: ---- | D95: ---- | E95: ---- | F95: ---- | G95: ---- | H95: ---- | I95: ---- | J95: ---- | K95: ---- | L95: | | M95: ---- | N95: ---- | O95: ---- | P95: ---- | Q95: ---- | R95: ---- | S95: ---- | T95: ---- | U95: ---- | V95: ---- | W95: ---- | X95: |
